Workbook

Sheet Switchgrass L Input-L Yield (hidden)
A1: Switchgrass | B1: Low Input Low Yield
B2: Total Yield (in tons) | C2: ='BUDGET CALCULATOR'!#REF! -> 
A4: Establishment
A6: Efficient Producer | C6: Operation | D6: Equipment | E6: Additional Material Needed | F6: Amount (Unit)/Price | G6: Total Price | H6: MSBG Fuel (in gallons) | I6: MSBG Maintenance Cost | J6: MSBG Labor Hours | K6: MSBG Labor with 1.2 multiplier
C7: Plowing (FROM UNIVERSITY OF MINNESOTA EXTENSION, NOT MSGB) | D7: 4 bottom moldboard plow | H7: 1.29 | I7: =1.86+2.04 -> 3.9 | J7: =1/4.17 -> 0.2398081535 | K7: =J7*1.2 -> 0.2877697842
C8: Roller Harrow | D8: 15 foot cultipacker/rollerharrow | H8: =2.01/2.52 -> 0.7976190476 | I8: 0.41 | J8: 0.119 | K8: =J8*1.2 -> 0.1428
C9: Fertilizer Application | D9: Tractor pull cart with 40 foot swath | H9: =2.21/2.52 -> 0.876984127 | I9: 1.22 | J9: 0.138 | K9: =J9*1.2 -> 0.1656
E10: 200 pounds 18-46-0 (DAP) | F10: =703/2000 -> 0.3515 | G10: =F10*200 -> 70.3
C11: Planting | D11: 12-15 foot drill | H11: =2.45/2.52 -> 0.9722222222 | I11: 1.68 | J11: 0.139 | K11: =J11*1.2 -> 0.1668
E12: 6 pounds seed (3 Blackwell, 3 Dacotah) | F12: 2.39 | G12: =F12*6 -> 14.34
A14: Reeseding
C15: Fertilizer Application | D15: Tractor pull cart with 40 foot swath | H15: =2.21/2.52 -> 0.876984127 | I15: 1.22 | J15: 0.138 | K15: =J15*1.2 -> 0.1656
E16: 200 pounds 18-46-0 (DAP) | F16: =703/2000 -> 0.3515 | G16: =F16*200 -> 70.3
C17: Planting | D17: 12-15 foot drill | H17: =2.45/2.52 -> 0.9722222222 | I17: 1.68 | J17: 0.139 | K17: =J17*1.2 -> 0.1668
E18: 6 pounds seed (3 Blackwell, 3 Dacotah) | F18: 2.39 | G18: =F18*6 -> 14.34
A20: Inefficient Producer | C20: Disking | D20: 15 foot tandem disk | H20: =2.48/2.52 -> 0.9841269841 | I20: 1.03 | J20: 0.154 | K20: =J20*1.2 -> 0.1848
C21: Raking | D21: 30 foot Hay Rake | H21: =1.7/2.52 -> 0.6746031746 | I21: 0.45 | J21: 0.101 | K21: =J21*1.2 -> 0.1212
A23: Irrigation | C23: Land Planing | D23: 12 foot land plane | H23: =3.74/2.52 -> 1.484126984 | I23: 1.29 | J23: 0.152 | K23: =J23*1.2 -> 0.1824
A25: Yearly
C26: Fertilizer Application | D26: Tractor pull cart with 40 foot swath | H26: =2.21/2.52 -> 0.876984127 | I26: 1.22 | J26: 0.138 | K26: =J26*1.2 -> 0.1656
E27: 60 pounds Nitrogen Urea | F27: =536/2000 -> 0.268 | G27: =F27*60 -> 16.08
E28: 1 Qt 2,4-D Herbacide | F28: 13/gal | G28: 3.25
C30: Swathing | D30: 14 foot swather | H30: =2.9/2.52 -> 1.150793651 | I30: 2.67 | J30: 0.172 | K30: =J30*1.2 -> 0.2064
C31: Baling | D31: Bailer | H31: =3.57/2.52 -> 1.416666667 | I31: 3.36 | J31: 0.212 | K31: =J31*1.2 -> 0.2544
C32: Hauling (FROM UNIVERSITY OF MINNESOTA EXTENSION, NOT MSGB) | D32: Baling Wagon | H32: 0.85 | I32: =1.05+0.75+0.61 -> 2.41 | J32: =1/6.76 -> 0.1479289941 | K32: =J32*1.2 -> 0.1775147929
E33: Twine/ ton | F33: 0.76 | G33: =F33*$C$2 -> 
A46: Establishment Totals Efficient Producer | G46: =SUM(G10:G12) -> 84.64 | H46: =SUM(H7:H11)+H23 -> 5.420952381 | I46: =SUM(I7:I11)+I23 -> 8.5 | J46: =SUM(J7:J11)+J23 -> 0.7878081535 | K46: =SUM(K7:K11)+K23 -> 0.9453697842
B47: Total With Labor | K47: =K46*'BUDGET CALCULATOR'!C5 -> 0
B48: Total with Fuel | H48: =H46*'BUDGET CALCULATOR'!C7 -> 0
B49: Total with Irrigation | G49: =G46+'BUDGET CALCULATOR'!C8 -> 84.64
A51: Total Establishment Cost (Efficient Producer) | C51: =G49+H48+I46+K47 -> 93.14
A53: Annual Interest (Ammortized over 10 Years) | C53: =((C51*('BUDGET CALCULATOR'!#REF!)))/((1-(1+('BUDGET CALCULATOR'!#REF!))^-10)) -> 
A55: TOTAL EFFICIENT PRODUCER ESTABLISHMENT COST: | C55: =SUM(C51:C53) -> 
A57: Establishment Totals Inefficient Producer | G57: =G46 -> 84.64 | H57: =SUM((H7:H11,H20:H23)) -> 7.07968254 | I57: =SUM((I7:I11,I20:I23)) -> 9.98 | J57: =SUM((J7:J11,J20:J23)) -> 1.042808153 | K57: =SUM((K7:K11,K20:K23)) -> 1.251369784
B58: Total With Labor | K58: =K57*'BUDGET CALCULATOR'!C5 -> 0
B59: Total with Fuel | H59: =H57*'BUDGET CALCULATOR'!C7 -> 0
B60: Total with Irrigation | G60: =G57+'BUDGET CALCULATOR'!C8 -> 84.64
A62: Total Establishment Cost (Inefficient Producer) | C62: =G60+H59+I57+K58 -> 94.62
A64: Annual Interest (Ammortized over 10 Years) | C64: =((C62*('BUDGET CALCULATOR'!#REF!)))/((1-(1+('BUDGET CALCULATOR'!#REF!))^-10)) -> 
A66: TOTAL INEFFICIENT PRODUCER ESTABLISHMENT COST: | C66: =SUM(C62:C64) -> 
A68: Reeseding Costs | G68: =SUM(G16:G18) -> 84.64 | H68: =SUM(H15:H17) -> 1.849206349 | I68: =SUM(I15:I17) -> 2.9 | J68: 0.277 | K68: 0.3324
B69: Total With Labor | K69: =K68*'BUDGET CALCULATOR'!C5 -> 0
B70: Total with Fuel | H70: =H68*'BUDGET CALCULATOR'!C7 -> 0
B71: Total with Irrigation | G71: =G68+'BUDGET CALCULATOR'!$C$8 -> 84.64
A73: Total Reeseding Costs | B73: =G71+H70+I68+K69 -> 87.54
A75: TOTAL EXPECTED REESEDING COSTS (Reeseding once every four years) | B75: =0.25*B73 -> 21.885
A77: Annual Totals | G77: =SUM(G26:G37) ->  | H77: =SUM(H26:H38) -> 4.294444444 | I77: 9.66 | J77: 0.6699289941 | K77: 0.8039147929
B78: Total With Labor | K78: =K77*'BUDGET CALCULATOR'!C5 -> 0
B79: Total with Fuel | H79: =H77*'BUDGET CALCULATOR'!C7 -> 0
B80: Total with Irrigation | G80: =G77+'BUDGET CALCULATOR'!C8 -> 
A82: Total Annual Cost | C82: =G80+H79+I77+K78 -> 
A83: Total Annual Cost with ammortized reesding costs | C83: =C82+B75 -> 
A85: Total Interest (6 month loan) | C85: =((C83*('BUDGET CALCULATOR'!#REF!/12)))/((1-((1+('BUDGET CALCULATOR'!#REF!/12))^-6)))*0.5 -> 
A87: TOTAL ANNUAL COST | C87: =SUM(C83:C85) -> 
A89: TOTAL PER ACRE COST (Efficient Producer) | C89: =C87+C53 -> 
A91: TOTAL PER ACRE COST (Inefficient Producer) | C91: =C87+C64 -> 

Sheet Switchgrass L Input-H Yield (hidden)
A1: Switchgrass | B1: High Input Low Yield
B2: Total Yield (in tons) | C2: ='BUDGET CALCULATOR'!#REF! -> 
A4: Establishment
A6: Efficient Producer | C6: Operation | D6: Equipment | E6: Additional Material Needed | F6: Amount (Unit)/Price | G6: Total Price | H6: MSBG Fuel (in gallons) | I6: MSBG Maintenance Cost | J6: MSBG Labor Hours | K6: MSBG Labor with 1.2 multiplier
C7: Plowing (FROM UNIVERSITY OF MINNESOTA EXTENSION, NOT MSGB) | D7: 4 bottom moldboard plow | H7: 1.29 | I7: =1.86+2.04 -> 3.9 | J7: =1/4.17 -> 0.2398081535 | K7: =J7*1.2 -> 0.2877697842
C8: Roller Harrow | D8: 15 foot cultipacker/rollerharrow | H8: =2.01/2.52 -> 0.7976190476 | I8: 0.41 | J8: 0.119 | K8: =J8*1.2 -> 0.1428
C9: Fertilizer Application | D9: Tractor pull cart with 40 foot swath | H9: =2.21/2.52 -> 0.876984127 | I9: 1.22 | J9: 0.138 | K9: =J9*1.2 -> 0.1656
E10: 200 pounds 18-46-0 (DAP) | F10: =703/2000 -> 0.3515 | G10: =F10*200 -> 70.3
C11: Planting | D11: 12-15 foot drill | H11: =2.45/2.52 -> 0.9722222222 | I11: 1.68 | J11: 0.139 | K11: =J11*1.2 -> 0.1668
E12: 6 pounds seed (3 Blackwell, 3 Dacotah) | F12: 2.39 | G12: =F12*6 -> 14.34
A14: Reeseding
C15: Fertilizer Application | D15: Tractor pull cart with 40 foot swath | H15: =2.21/2.52 -> 0.876984127 | I15: 1.22 | J15: 0.138 | K15: =J15*1.2 -> 0.1656
E16: 200 pounds 18-46-0 (DAP) | F16: =703/2000 -> 0.3515 | G16: =F16*200 -> 70.3
C17: Planting | D17: 12-15 foot drill | H17: =2.45/2.52 -> 0.9722222222 | I17: 1.68 | J17: 0.139 | K17: =J17*1.2 -> 0.1668
E18: 6 pounds seed (3 Blackwell, 3 Dacotah) | F18: 2.39 | G18: =F18*6 -> 14.34
A20: Inefficient Producer | C20: Disking | D20: 15 foot tandem disk | H20: =2.48/2.52 -> 0.9841269841 | I20: 1.03 | J20: 0.154 | K20: =J20*1.2 -> 0.1848
C21: Raking | D21: 30 foot Hay Rake | H21: =1.7/2.52 -> 0.6746031746 | I21: 0.45 | J21: 0.101 | K21: =J21*1.2 -> 0.1212
A23: Irrigation | C23: Land Planing | D23: 12 foot land plane | H23: =3.74/2.52 -> 1.484126984 | I23: 1.29 | J23: 0.152 | K23: =J23*1.2 -> 0.1824
A25: Yearly
C26: Fertilizer Application | D26: Tractor pull cart with 40 foot swath | H26: =2.21/2.52 -> 0.876984127 | I26: 1.22 | J26: 0.138 | K26: =J26*1.2 -> 0.1656
E27: 30 pounds Nitrogen Urea | F27: =536/2000 -> 0.268 | G27: =F27*30 -> 8.04
E28: 1 Qt 2,4-D Herbacide | F28: 13/gal | G28: 3.25
C30: Swathing | D30: 14 foot swather | H30: =2.9/2.52 -> 1.150793651 | I30: 2.67 | J30: 0.172 | K30: =J30*1.2 -> 0.2064
C31: Baling | D31: Bailer | H31: =3.57/2.52 -> 1.416666667 | I31: 3.36 | J31: 0.212 | K31: =J31*1.2 -> 0.2544
C32: Hauling (FROM UNIVERSITY OF MINNESOTA EXTENSION, NOT MSGB) | D32: Baling Wagon | H32: 0.85 | I32: =1.05+0.75+0.61 -> 2.41 | J32: =1/6.76 -> 0.1479289941 | K32: =J32*1.2 -> 0.1775147929
C33: Fertilizer Application | D33: Tractor pull cart with 40 foot swath | H33: =2.21/2.52 -> 0.876984127 | I33: 1.22 | J33: 0.138 | K33: =J33*1.2 -> 0.1656
E34: 30 pounds Nitrogen Urea | F34: =536/2000 -> 0.268 | G34: =F34*30 -> 8.04
C35: Swathing | D35: 14 foot swather | H35: =2.9/2.52 -> 1.150793651 | I35: 2.67 | J35: 0.172 | K35: =J35*1.2 -> 0.2064
C36: Baling | D36: Bailer | H36: =3.57/2.52 -> 1.416666667 | I36: 3.36 | J36: 0.212 | K36: =J36*1.2 -> 0.2544
C37: Hauling (FROM UNIVERSITY OF MINNESOTA EXTENSION, NOT MSGB) | D37: Baling Wagon | H37: 0.85 | I37: =1.05+0.75+0.61 -> 2.41 | J37: =1/6.76 -> 0.1479289941 | K37: =J37*1.2 -> 0.1775147929
E38: Twine/ ton | F38: 0.76 | G38: =F38*$C$2 -> 
A46: Establishment Totals Efficient Producer | G46: =SUM(G10:G12) -> 84.64 | H46: =SUM(H7:H11)+H23 -> 5.420952381 | I46: =SUM(I7:I11)+I23 -> 8.5 | J46: =SUM(J7:J11)+J23 -> 0.7878081535 | K46: =SUM(K7:K11)+K23 -> 0.9453697842
B47: Total With Labor | K47: =K46*'BUDGET CALCULATOR'!C5 -> 0
B48: Total with Fuel | H48: =H46*'BUDGET CALCULATOR'!C7 -> 0
B49: Total with Irrigation | G49: =G46+'BUDGET CALCULATOR'!C8 -> 84.64
A51: Total Establishment Cost (Efficient Producer) | C51: =G49+H48+I46+K47 -> 93.14
A53: Annual Interest (Ammortized over 10 Years) | C53: =((C51*('BUDGET CALCULATOR'!#REF!)))/((1-(1+('BUDGET CALCULATOR'!#REF!))^-10)) -> 
A55: TOTAL EFFICIENT PRODUCER ESTABLISHMENT COST: | C55: =SUM(C51:C53) -> 
A57: Establishment Totals Inefficient Producer | G57: =G46 -> 84.64 | H57: =SUM((H7:H11,H20:H23)) -> 7.07968254 | I57: =SUM((I7:I11,I20:I23)) -> 9.98 | J57: =SUM((J7:J11,J20:J23)) -> 1.042808153 | K57: =SUM((K7:K11,K20:K23)) -> 1.251369784
B58: Total With Labor | K58: =K57*'BUDGET CALCULATOR'!C5 -> 0
B59: Total with Fuel | H59: =H57*'BUDGET CALCULATOR'!C7 -> 0
B60: Total with Irrigation | G60: =G57+'BUDGET CALCULATOR'!C8 -> 84.64
A62: Total Establishment Cost (Inefficient Producer) | C62: =G60+H59+I57+K58 -> 94.62
A64: Annual Interest (Ammortized over 10 Years) | C64: =((C62*('BUDGET CALCULATOR'!#REF!)))/((1-(1+('BUDGET CALCULATOR'!#REF!))^-10)) -> 
A66: TOTAL INEFFICIENT PRODUCER ESTABLISHMENT COST: | C66: =SUM(C62:C64) -> 
A68: Reeseding Costs | G68: =SUM(G16:G18) -> 84.64 | H68: =SUM(H15:H17) -> 1.849206349 | I68: =SUM(I15:I17) -> 2.9 | J68: 0.277 | K68: 0.3324
B69: Total With Labor | K69: =K68*'BUDGET CALCULATOR'!C5 -> 0
B70: Total with Fuel | H70: =H68*'BUDGET CALCULATOR'!C7 -> 0
B71: Total with Irrigation | G71: =G68+'BUDGET CALCULATOR'!$C$8 -> 84.64
A73: Total Reeseding Costs | B73: =G71+H70+I68+K69 -> 87.54
A75: TOTAL EXPECTED REESEDING COSTS (Reeseding once every four years) | B75: =0.25*B73 -> 21.885
A77: Annual Totals | G77: =SUM(G26:G38) ->  | H77: =SUM(H26:H38) -> 8.588888889 | I77: 19.32 | J77: 1.339857988 | K77: 1.607829586
B78: Total With Labor | K78: =K77*'BUDGET CALCULATOR'!C5 -> 0
B79: Total with Fuel | H79: =H77*'BUDGET CALCULATOR'!C7 -> 0
B80: Total with Irrigation | G80: =G77+'BUDGET CALCULATOR'!C8 -> 
A82: Total Annual Cost | C82: =G80+H79+I77+K78 -> 
A83: Total Annual Cost with ammortized reesding costs | C83: =C82+B75 -> 
A85: Total Interest (6 month loan) | C85: =((C83*('BUDGET CALCULATOR'!#REF!/12)))/((1-((1+('BUDGET CALCULATOR'!#REF!/12))^-6)))*0.5 -> 
A87: TOTAL ANNUAL COST | C87: =SUM(C83:C85) -> 
A89: TOTAL PER ACRE COST (Efficient Producer) | C89: =C87+C53 -> 
A91: TOTAL PER ACRE COST (Inefficient Producer) | C91: =C87+C64 -> 

Sheet Switchgrass L Input-1 cut (hidden)
A1: Tall Fescue | B1: Low Input Low Yield
B2: Total Yield (in tons) | C2: ='BUDGET CALCULATOR'!I17 -> 0
B3: N Per Cutting | C3: 60
A4: Establishment
A6: Producer | C6: Operation | D6: Equipment | E6: Additional Material Needed | F6: Amount (Unit)/Price | G6: Total Price | H6: MSBG Fuel (in gallons) | I6: MSBG Maintenance Cost | J6: MSBG Labor Hours | K6: MSBG Labor with 1.2 multiplier
C7: Plowing (FROM UNIVERSITY OF MINNESOTA EXTENSION, NOT MSGB) | D7: 4 bottom moldboard plow | H7: 1.29 | I7: =1.86+2.04 -> 3.9 | J7: =1/4.17 -> 0.2398081535 | K7: =J7*1.2 -> 0.2877697842
C8: Roller Harrow | D8: 15 foot cultipacker/rollerharrow | H8: =2.01/2.52 -> 0.7976190476 | I8: 0.41 | J8: 0.119 | K8: =J8*1.2 -> 0.1428
C9: Fertilizer Application | D9: Tractor pull cart with 40 foot swath | H9: =2.21/2.52 -> 0.876984127 | I9: 1.22 | J9: 0.138 | K9: 0.1656
E10: 200 pounds 18-46-0 (DAP) | F10: =703/2000 -> 0.3515 | G10: =F10*200 -> 70.3
C11: Planting | D11: 12-15 foot drill | H11: =2.45/2.52 -> 0.9722222222 | I11: 1.68 | J11: 0.139 | K11: 0.1668
E12: 10 pounds seed (10 Fawn or Alta) | F12: 0.65 | G12: =F12*10 -> 6.5
A15: Irrigation | C15: Land Planing | D15: 12 foot land plane | H15: =3.74/2.52 -> 1.484126984 | I15: 1.29 | J15: 0.152 | K15: 0.1824
A18: Yearly
C19: Operation | D19: Equipment | E19: Material Needed | F19: Amount (Unit)/Price | G19: Total Price
C21: Fertilizer Application | D21: Tractor pull cart with 40 foot swath | H21: =2.21/2.52 -> 0.876984127 | I21: 1.22 | J21: 0.138 | K21: =J21*1.2 -> 0.1656
E22: 60 pounds Nitrogen Urea | F22: =536/2000 -> 0.268 | G22: =F22*'BUDGET CALCULATOR'!I20 -> 0
C23: Swathing | D23: 14 foot swather | H23: =2.9/2.52 -> 1.150793651 | I23: 2.67 | J23: 0.172 | K23: =J23*1.2 -> 0.2064
C24: Baling | D24: Bailer | H24: =3.57/2.52 -> 1.416666667 | I24: 3.36 | J24: 0.212 | K24: =J24*1.2 -> 0.2544
C25: Hauling (FROM UNIVERSITY OF MINNESOTA EXTENSION, NOT MSGB) | D25: Baling Wagon | H25: 0.85 | I25: =1.05+0.75+0.61 -> 2.41 | J25: =1/6.76 -> 0.1479289941 | K25: =J25*1.2 -> 0.1775147929
E26: Twine/ ton | F26: 0.76 | G26: =F26*$C$2 -> 0
A48: Establishment Totals | G48: =SUM(G10:G12) -> 76.8 | H48: =SUM(H7:H11)+H15 -> 5.420952381 | I48: =SUM(I7:I11)+I15 -> 8.5 | J48: =SUM(J7:J11)+J15 -> 0.7878081535 | K48: =SUM(K7:K11)+K15 -> 0.9453697842
B49: Total With Labor | K49: =K48*'BUDGET CALCULATOR'!C5 -> 0
B50: Total with Fuel | H50: =H48*'BUDGET CALCULATOR'!C7 -> 0
B51: Total with Irrigation | G51: =G48+'BUDGET CALCULATOR'!C8 -> 76.8
A53: Total Establishment Cost | C53: =G51+H50+I48+K49 -> 85.3
A55: Annual Interest (Ammortized over 10 Years) | C55: =((C53*('BUDGET CALCULATOR'!C6)))/((1-(1+('BUDGET CALCULATOR'!C6))^-10)) -> 
A57: TOTAL ESTABLISHMENT COST: | C57: =SUM(C53:C55) -> 
A60: Annual Totals | G60: =SUM(G21:G30) -> 0 | H60: =SUM(H15:H30) -> 5.778571429 | I60: =SUM(I15:I30) -> 10.95 | J60: =SUM(J15:J30) -> 0.8219289941 | K60: =SUM(K15:K30) -> 0.9863147929
B61: Total With Labor | K61: =K60*'BUDGET CALCULATOR'!C5 -> 0
B62: Total with Fuel | H62: =H60*'BUDGET CALCULATOR'!C7 -> 0
B63: Total with Irrigation | G63: =G60+'BUDGET CALCULATOR'!C8 -> 0
A65: Total Annual Cost | C65: =G63+H62+I60+K61 -> 10.95
A67: Total Interest (6 month loan) | C67: =((C65*('BUDGET CALCULATOR'!C6/12)))/((1-((1+('BUDGET CALCULATOR'!C6/12))^-6)))*0.5 -> 
A69: TOTAL ANNUAL COST | C69: =SUM(C65:C67) -> 
A71: TOTAL PER ACRE COST (Efficient Producer) | C71: =C69+C55 -> 

Sheet Switchgrass L Input-2 cut (hidden)
A1: Tall Fescue | B1: Low Input High Yield
B2: Total Yield (in tons) | C2: ='BUDGET CALCULATOR'!I17 -> 0
B3: N Per Cutting | C3: 30
A4: Establishment
A6: Producer | C6: Operation | D6: Equipment | E6: Additional Material Needed | F6: Amount (Unit)/Price | G6: Total Price | H6: MSBG Fuel (in gallons) | I6: MSBG Maintenance Cost | J6: MSBG Labor Hours | K6: MSBG Labor with 1.2 multiplier
C7: Plowing (FROM UNIVERSITY OF MINNESOTA EXTENSION, NOT MSGB) | D7: 4 bottom moldboard plow | H7: 1.29 | I7: =1.86+2.04 -> 3.9 | J7: =1/4.17 -> 0.2398081535 | K7: =J7*1.2 -> 0.2877697842
C8: Roller Harrow | D8: 15 foot cultipacker/rollerharrow | H8: =2.01/2.52 -> 0.7976190476 | I8: 0.41 | J8: 0.119 | K8: =J8*1.2 -> 0.1428
C9: Fertilizer Application | D9: Tractor pull cart with 40 foot swath | H9: =2.21/2.52 -> 0.876984127 | I9: 1.22 | J9: 0.138 | K9: 0.1656
E10: 200 pounds 18-46-0 (DAP) | F10: =703/2000 -> 0.3515 | G10: =F10*200 -> 70.3
C11: Planting | D11: 12-15 foot drill | H11: =2.45/2.52 -> 0.9722222222 | I11: 1.68 | J11: 0.139 | K11: 0.1668
E12: 10 pounds seed (10 Fawn or Alta) | F12: 0.65 | G12: =F12*10 -> 6.5
A15: Irrigation | C15: Land Planing | D15: 12 foot land plane | H15: =3.74/2.52 -> 1.484126984 | I15: 1.29 | J15: 0.152 | K15: 0.1824
A18: Yearly
C19: Operation | D19: Equipment | E19: Material Needed | F19: Amount (Unit)/Price | G19: Total Price
C21: Fertilizer Application | D21: Tractor pull cart with 40 foot swath | H21: =2.21/2.52 -> 0.876984127 | I21: 1.22 | J21: 0.138 | K21: =J21*1.2 -> 0.1656
E22: 30 pounds Nitrogen Urea | F22: =536/2000 -> 0.268 | G22: =F22*'BUDGET CALCULATOR'!I20 -> 0
C23: Swathing | D23: 14 foot swather | H23: =2.9/2.52 -> 1.150793651 | I23: 2.67 | J23: 0.172 | K23: =J23*1.2 -> 0.2064
C24: Baling | D24: Bailer | H24: =3.57/2.52 -> 1.416666667 | I24: 3.36 | J24: 0.212 | K24: 0.2544
C25: Hauling (FROM UNIVERSITY OF MINNESOTA EXTENSION, NOT MSGB) | D25: Baling Wagon | H25: 0.85 | I25: =1.05+0.75+0.61 -> 2.41 | J25: =1/6.76 -> 0.1479289941 | K25: =J25*1.2 -> 0.1775147929
C26: Fertilizer Application | D26: Tractor pull cart with 40 foot swath | H26: =2.21/2.52 -> 0.876984127 | I26: 1.22 | J26: 0.138 | K26: 0.1656
E27: 30 pounds Nitrogen Urea | F27: =536/2000 -> 0.268 | G27: =F27*'BUDGET CALCULATOR'!I20 -> 0
C28: Swathing | D28: 14 foot swather | H28: =2.9/2.52 -> 1.150793651 | I28: 2.67 | J28: 0.172 | K28: 0.2064
C29: Baling | D29: Bailer | H29: =3.57/2.52 -> 1.416666667 | I29: 3.36 | J29: 0.212 | K29: 0.2544
C30: Hauling (FROM UNIVERSITY OF MINNESOTA EXTENSION, NOT MSGB) | D30: Baling Wagon | H30: 0.85 | I30: =1.05+0.75+0.61 -> 2.41 | J30: =1/6.76 -> 0.1479289941 | K30: =J30*1.2 -> 0.1775147929
E31: Twine/ ton | F31: 0.76 | G31: =F31*$C$2 -> 0
A48: Establishment Totals Efficient Producer | G48: =SUM(G10:G12) -> 76.8 | H48: =SUM(H7:H11)+H15 -> 5.420952381 | I48: =SUM(I7:I11)+I15 -> 8.5 | J48: =SUM(J7:J11)+J15 -> 0.7878081535 | K48: =SUM(K7:K11)+K15 -> 0.9453697842
B49: Total With Labor | K49: =K48*'BUDGET CALCULATOR'!C5 -> 0
B50: Total with Fuel | H50: =H48*'BUDGET CALCULATOR'!C7 -> 0
B51: Total with Irrigation | G51: =G48+'BUDGET CALCULATOR'!C8 -> 76.8
A53: Total Establishment Cost | C53: =G51+H50+I48+K49 -> 85.3
A55: Annual Interest (Ammortized over 10 Years) | C55: =((C53*('BUDGET CALCULATOR'!C6)))/((1-(1+('BUDGET CALCULATOR'!C6))^-10)) -> 
A57: TOTAL ESTABLISHMENT COST: | C57: =SUM(C53:C55) -> 
A60: Annual Totals | G60: =SUM(G21:G30) -> 0 | H60: =SUM(H15:H30) -> 10.07301587 | I60: =SUM(I15:I30) -> 20.61 | J60: =SUM(J15:J30) -> 1.491857988 | K60: =SUM(K15:K30) -> 1.790229586
B61: Total With Labor | K61: =K60*'BUDGET CALCULATOR'!C5 -> 0
B62: Total with Fuel | H62: =H60*'BUDGET CALCULATOR'!C7 -> 0
B63: Total with Irrigation | G63: =G60+'BUDGET CALCULATOR'!C8 -> 0
A65: Total Annual Cost | C65: =G63+H62+I60+K61 -> 20.61
A67: Total Interest (6 month loan) | C67: =((C65*('BUDGET CALCULATOR'!C6/12)))/((1-((1+('BUDGET CALCULATOR'!C6/12))^-6)))*0.5 -> 
A69: TOTAL ANNUAL COST | C69: =SUM(C65:C67) -> 
A71: TOTAL PER ACRE COST | C71: =C69+C55 -> 

Sheet Tall Fescue L Input-1 cut (hidden)
A1: Tall Fescue | B1: Low Input Low Yield
B2: Total Yield (in tons) | C2: ='BUDGET CALCULATOR'!I17 -> 0
B3: N Per Cutting | C3: 60
A4: Establishment
A6: Producer | C6: Operation | D6: Equipment | E6: Additional Material Needed | F6: Amount (Unit)/Price | G6: Total Price | H6: MSBG Fuel (in gallons) | I6: MSBG Maintenance Cost | J6: MSBG Labor Hours | K6: MSBG Labor with 1.2 multiplier
C7: Plowing (FROM UNIVERSITY OF MINNESOTA EXTENSION, NOT MSGB) | D7: 4 bottom moldboard plow | H7: 1.29 | I7: =1.86+2.04 -> 3.9 | J7: =1/4.17 -> 0.2398081535 | K7: =J7*1.2 -> 0.2877697842
C8: Roller Harrow | D8: 15 foot cultipacker/rollerharrow | H8: =2.01/2.52 -> 0.7976190476 | I8: 0.41 | J8: 0.119 | K8: =J8*1.2 -> 0.1428
C9: Fertilizer Application | D9: Tractor pull cart with 40 foot swath | H9: =2.21/2.52 -> 0.876984127 | I9: 1.22 | J9: 0.138 | K9: 0.1656
E10: 200 pounds 18-46-0 (DAP) | F10: =703/2000 -> 0.3515 | G10: =F10*200 -> 70.3
C11: Planting | D11: 12-15 foot drill | H11: =2.45/2.52 -> 0.9722222222 | I11: 1.68 | J11: 0.139 | K11: 0.1668
E12: 10 pounds seed (10 Fawn or Alta) | F12: 0.65 | G12: =F12*10 -> 6.5
A15: Irrigation | C15: Land Planing | D15: 12 foot land plane | H15: =3.74/2.52 -> 1.484126984 | I15: 1.29 | J15: 0.152 | K15: 0.1824
A18: Yearly
C19: Operation | D19: Equipment | E19: Material Needed | F19: Amount (Unit)/Price | G19: Total Price
C21: Fertilizer Application | D21: Tractor pull cart with 40 foot swath | H21: =2.21/2.52 -> 0.876984127 | I21: 1.22 | J21: 0.138 | K21: =J21*1.2 -> 0.1656
E22: 60 pounds Nitrogen Urea | F22: =536/2000 -> 0.268 | G22: =F22*'BUDGET CALCULATOR'!I20 -> 0
C23: Swathing | D23: 14 foot swather | H23: =2.9/2.52 -> 1.150793651 | I23: 2.67 | J23: 0.172 | K23: =J23*1.2 -> 0.2064
C24: Baling | D24: Bailer | H24: =3.57/2.52 -> 1.416666667 | I24: 3.36 | J24: 0.212 | K24: =J24*1.2 -> 0.2544
C25: Hauling (FROM UNIVERSITY OF MINNESOTA EXTENSION, NOT MSGB) | D25: Baling Wagon | H25: 0.85 | I25: =1.05+0.75+0.61 -> 2.41 | J25: =1/6.76 -> 0.1479289941 | K25: =J25*1.2 -> 0.1775147929
E26: Twine/ ton | F26: 0.76 | G26: =F26*$C$2 -> 0
A48: Establishment Totals | G48: =SUM(G10:G12) -> 76.8 | H48: =SUM(H7:H11)+H15 -> 5.420952381 | I48: =SUM(I7:I11)+I15 -> 8.5 | J48: =SUM(J7:J11)+J15 -> 0.7878081535 | K48: =SUM(K7:K11)+K15 -> 0.9453697842
B49: Total With Labor | K49: =K48*'BUDGET CALCULATOR'!C5 -> 0
B50: Total with Fuel | H50: =H48*'BUDGET CALCULATOR'!C7 -> 0
B51: Total with Irrigation | G51: =G48+'BUDGET CALCULATOR'!C8 -> 76.8
A53: Total Establishment Cost | C53: =G51+H50+I48+K49 -> 85.3
A55: Annual Interest (Ammortized over 10 Years) | C55: =((C53*('BUDGET CALCULATOR'!C6)))/((1-(1+('BUDGET CALCULATOR'!C6))^-10)) -> 
A57: TOTAL ESTABLISHMENT COST: | C57: =SUM(C53:C55) -> 
A60: Annual Totals | G60: =SUM(G21:G30) -> 0 | H60: =SUM(H15:H30) -> 5.778571429 | I60: =SUM(I15:I30) -> 10.95 | J60: =SUM(J15:J30) -> 0.8219289941 | K60: =SUM(K15:K30) -> 0.9863147929
B61: Total With Labor | K61: =K60*'BUDGET CALCULATOR'!C5 -> 0
B62: Total with Fuel | H62: =H60*'BUDGET CALCULATOR'!C7 -> 0
B63: Total with Irrigation | G63: =G60+'BUDGET CALCULATOR'!C8 -> 0
A65: Total Annual Cost | C65: =G63+H62+I60+K61 -> 10.95
A67: Total Interest (6 month loan) | C67: =((C65*('BUDGET CALCULATOR'!C6/12)))/((1-((1+('BUDGET CALCULATOR'!C6/12))^-6)))*0.5 -> 
A69: TOTAL ANNUAL COST | C69: =SUM(C65:C67) -> 
A71: TOTAL PER ACRE COST (Efficient Producer) | C71: =C69+C55 -> 

Sheet Tall Fescue L Input-2 cut (hidden)
A1: Tall Fescue | B1: Low Input High Yield
B2: Total Yield (in tons) | C2: ='BUDGET CALCULATOR'!I17 -> 0
B3: N Per Cutting | C3: 30
A4: Establishment
A6: Producer | C6: Operation | D6: Equipment | E6: Additional Material Needed | F6: Amount (Unit)/Price | G6: Total Price | H6: MSBG Fuel (in gallons) | I6: MSBG Maintenance Cost | J6: MSBG Labor Hours | K6: MSBG Labor with 1.2 multiplier
C7: Plowing (FROM UNIVERSITY OF MINNESOTA EXTENSION, NOT MSGB) | D7: 4 bottom moldboard plow | H7: 1.29 | I7: =1.86+2.04 -> 3.9 | J7: =1/4.17 -> 0.2398081535 | K7: =J7*1.2 -> 0.2877697842
C8: Roller Harrow | D8: 15 foot cultipacker/rollerharrow | H8: =2.01/2.52 -> 0.7976190476 | I8: 0.41 | J8: 0.119 | K8: =J8*1.2 -> 0.1428
C9: Fertilizer Application | D9: Tractor pull cart with 40 foot swath | H9: =2.21/2.52 -> 0.876984127 | I9: 1.22 | J9: 0.138 | K9: 0.1656
E10: 200 pounds 18-46-0 (DAP) | F10: =703/2000 -> 0.3515 | G10: =F10*200 -> 70.3
C11: Planting | D11: 12-15 foot drill | H11: =2.45/2.52 -> 0.9722222222 | I11: 1.68 | J11: 0.139 | K11: 0.1668
E12: 10 pounds seed (10 Fawn or Alta) | F12: 0.65 | G12: =F12*10 -> 6.5
A15: Irrigation | C15: Land Planing | D15: 12 foot land plane | H15: =3.74/2.52 -> 1.484126984 | I15: 1.29 | J15: 0.152 | K15: 0.1824
A18: Yearly
C19: Operation | D19: Equipment | E19: Material Needed | F19: Amount (Unit)/Price | G19: Total Price
C21: Fertilizer Application | D21: Tractor pull cart with 40 foot swath | H21: =2.21/2.52 -> 0.876984127 | I21: 1.22 | J21: 0.138 | K21: =J21*1.2 -> 0.1656
E22: 30 pounds Nitrogen Urea | F22: =536/2000 -> 0.268 | G22: =F22*'BUDGET CALCULATOR'!I20 -> 0
C23: Swathing | D23: 14 foot swather | H23: =2.9/2.52 -> 1.150793651 | I23: 2.67 | J23: 0.172 | K23: =J23*1.2 -> 0.2064
C24: Baling | D24: Bailer | H24: =3.57/2.52 -> 1.416666667 | I24: 3.36 | J24: 0.212 | K24: 0.2544
C25: Hauling (FROM UNIVERSITY OF MINNESOTA EXTENSION, NOT MSGB) | D25: Baling Wagon | H25: 0.85 | I25: =1.05+0.75+0.61 -> 2.41 | J25: =1/6.76 -> 0.1479289941 | K25: =J25*1.2 -> 0.1775147929
C26: Fertilizer Application | D26: Tractor pull cart with 40 foot swath | H26: =2.21/2.52 -> 0.876984127 | I26: 1.22 | J26: 0.138 | K26: 0.1656
E27: 30 pounds Nitrogen Urea | F27: =536/2000 -> 0.268 | G27: =F27*'BUDGET CALCULATOR'!I20 -> 0
C28: Swathing | D28: 14 foot swather | H28: =2.9/2.52 -> 1.150793651 | I28: 2.67 | J28: 0.172 | K28: 0.2064
C29: Baling | D29: Bailer | H29: =3.57/2.52 -> 1.416666667 | I29: 3.36 | J29: 0.212 | K29: 0.2544
C30: Hauling (FROM UNIVERSITY OF MINNESOTA EXTENSION, NOT MSGB) | D30: Baling Wagon | H30: 0.85 | I30: =1.05+0.75+0.61 -> 2.41 | J30: =1/6.76 -> 0.1479289941 | K30: =J30*1.2 -> 0.1775147929
E31: Twine/ ton | F31: 0.76 | G31: =F31*$C$2 -> 0
A48: Establishment Totals Efficient Producer | G48: =SUM(G10:G12) -> 76.8 | H48: =SUM(H7:H11)+H15 -> 5.420952381 | I48: =SUM(I7:I11)+I15 -> 8.5 | J48: =SUM(J7:J11)+J15 -> 0.7878081535 | K48: =SUM(K7:K11)+K15 -> 0.9453697842
B49: Total With Labor | K49: =K48*'BUDGET CALCULATOR'!C5 -> 0
B50: Total with Fuel | H50: =H48*'BUDGET CALCULATOR'!C7 -> 0
B51: Total with Irrigation | G51: =G48+'BUDGET CALCULATOR'!C8 -> 76.8
A53: Total Establishment Cost | C53: =G51+H50+I48+K49 -> 85.3
A55: Annual Interest (Ammortized over 10 Years) | C55: =((C53*('BUDGET CALCULATOR'!C6)))/((1-(1+('BUDGET CALCULATOR'!C6))^-10)) -> 
A57: TOTAL ESTABLISHMENT COST: | C57: =SUM(C53:C55) -> 
A60: Annual Totals | G60: =SUM(G21:G30) -> 0 | H60: =SUM(H15:H30) -> 10.07301587 | I60: =SUM(I15:I30) -> 20.61 | J60: =SUM(J15:J30) -> 1.491857988 | K60: =SUM(K15:K30) -> 1.790229586
B61: Total With Labor | K61: =K60*'BUDGET CALCULATOR'!C5 -> 0
B62: Total with Fuel | H62: =H60*'BUDGET CALCULATOR'!C7 -> 0
B63: Total with Irrigation | G63: =G60+'BUDGET CALCULATOR'!C8 -> 0
A65: Total Annual Cost | C65: =G63+H62+I60+K61 -> 20.61
A67: Total Interest (6 month loan) | C67: =((C65*('BUDGET CALCULATOR'!C6/12)))/((1-((1+('BUDGET CALCULATOR'!C6/12))^-6)))*0.5 -> 
A69: TOTAL ANNUAL COST | C69: =SUM(C65:C67) -> 
A71: TOTAL PER ACRE COST | C71: =C69+C55 -> 

Sheet Switchgrass H Input-1 cut (hidden)
A1: Switchgrass | B1: HIgh Input Low Yield
B2: Total Yield (in tons) | C2: ='BUDGET CALCULATOR'!L17 -> 0
B3: N per cutting | C3: 120
A4: Establishment
A6: Producer | C6: Operation | D6: Equipment | E6: Additional Material Needed | F6: Amount (Unit)/Price | G6: Total Price | H6: MSBG Fuel (in gallons) | I6: MSBG Maintenance Cost | J6: MSBG Labor Hours | K6: MSBG Labor with 1.2 multiplier
C7: Plowing (FROM UNIVERSITY OF MINNESOTA EXTENSION, NOT MSGB) | D7: 4 bottom moldboard plow | H7: 1.29 | I7: =1.86+2.04 -> 3.9 | J7: =1/4.17 -> 0.2398081535 | K7: =J7*1.2 -> 0.2877697842
C8: Roller Harrow | D8: 15 foot cultipacker/rollerharrow | H8: =2.01/2.52 -> 0.7976190476 | I8: 0.41 | J8: 0.119 | K8: =J8*1.2 -> 0.1428
C9: Fertilizer Application | D9: Tractor pull cart with 40 foot swath | H9: =2.21/2.52 -> 0.876984127 | I9: 1.22 | J9: 0.138 | K9: =J9*1.2 -> 0.1656
E10: 200 pounds 18-46-0 (DAP) | F10: =703/2000 -> 0.3515 | G10: =F10*200 -> 70.3
C11: Planting | D11: 12-15 foot drill | H11: =2.45/2.52 -> 0.9722222222 | I11: 1.68 | J11: 0.139 | K11: =J11*1.2 -> 0.1668
E12: 6 pounds seed (3 Blackwell, 3 Dacotah) | F12: 2.39 | G12: =F12*6 -> 14.34
A14: Reeseding
C15: Fertilizer Application | D15: Tractor pull cart with 40 foot swath | H15: =2.21/2.52 -> 0.876984127 | I15: 1.22 | J15: 0.138 | K15: =J15*1.2 -> 0.1656
E16: 200 pounds 18-46-0 (DAP) | F16: =703/2000 -> 0.3515 | G16: =F16*200 -> 70.3
C17: Planting | D17: 12-15 foot drill | H17: =2.45/2.52 -> 0.9722222222 | I17: 1.68 | J17: 0.139 | K17: =J17*1.2 -> 0.1668
E18: 6 pounds seed (3 Blackwell, 3 Dacotah) | F18: 2.39 | G18: =F18*6 -> 14.34
A21: Irrigation | C21: Land Planing | D21: 12 foot land plane | H21: =3.74/2.52 -> 1.484126984 | I21: 1.29 | J21: 0.152 | K21: =J21*1.2 -> 0.1824
A23: Yearly
C24: Fertilizer Application | D24: Tractor pull cart with 40 foot swath | H24: =2.21/2.52 -> 0.876984127 | I24: 1.22 | J24: 0.138 | K24: =J24*1.2 -> 0.1656
E25: 120 pounds Nitrogen Urea | F25: =536/2000 -> 0.268 | G25: =F25*'BUDGET CALCULATOR'!L20 -> 0
E26: 1 Qt 2,4-D Herbacide | F26: 13/gal | G26: 3.25
C28: Swathing | D28: 14 foot swather | H28: =2.9/2.52 -> 1.150793651 | I28: 2.67 | J28: 0.172 | K28: =J28*1.2 -> 0.2064
C29: Baling | D29: Bailer | H29: =3.57/2.52 -> 1.416666667 | I29: 3.36 | J29: 0.212 | K29: =J29*1.2 -> 0.2544
C30: Hauling (FROM UNIVERSITY OF MINNESOTA EXTENSION, NOT MSGB) | D30: Baling Wagon | H30: 0.85 | I30: =1.05+0.75+0.61 -> 2.41 | J30: =1/6.76 -> 0.1479289941 | K30: =J30*1.2 -> 0.1775147929
E31: Twine/ ton | F31: 0.76 | G31: =F31*$C$2 -> 0
A44: Establishment Totals | G44: =SUM(G10:G12) -> 84.64 | H44: =SUM(H7:H11)+H21 -> 5.420952381 | I44: =SUM(I7:I11)+I21 -> 8.5 | J44: =SUM(J7:J11)+J21 -> 0.7878081535 | K44: =SUM(K7:K11)+K21 -> 0.9453697842
B45: Total With Labor | K45: =K44*'BUDGET CALCULATOR'!C5 -> 0
B46: Total with Fuel | H46: =H44*'BUDGET CALCULATOR'!C7 -> 0
B47: Total with Irrigation | G47: =G44+'BUDGET CALCULATOR'!C8 -> 84.64
A49: Total Establishment Cost | C49: =G47+H46+I44+K45 -> 93.14
A51: Annual Interest (Ammortized over 10 Years) | C51: =((C49*('BUDGET CALCULATOR'!C6)))/((1-(1+('BUDGET CALCULATOR'!C6))^-10)) -> 
A53: TOTAL ESTABLISHMENT COST: | C53: =SUM(C49:C51) -> 
A56: Reeseding Costs | G56: =SUM(G16:G18) -> 84.64 | H56: =SUM(H15:H17) -> 1.849206349 | I56: =SUM(I15:I17) -> 2.9 | J56: =SUM(J15:J17) -> 0.277 | K56: =SUM(K15:K17) -> 0.3324
B57: Total With Labor | K57: =K56*'BUDGET CALCULATOR'!C5 -> 0
B58: Total with Fuel | H58: =H56*'BUDGET CALCULATOR'!C7 -> 0
B59: Total with Irrigation | G59: =G56+'BUDGET CALCULATOR'!$C$8 -> 84.64
A61: Total Reeseding Costs | B61: =G59+H58+I56+K57 -> 87.54
A63: TOTAL EXPECTED REESEDING COSTS (Reeseding once every four years) | B63: =0.25*B61 -> 21.885
A65: Annual Totals | G65: =SUM(G24:G36) -> 3.25 | H65: =SUM(H24:H36) -> 4.294444444 | I65: 9.66 | J65: 0.6699289941 | K65: 0.8039147929
B66: Total With Labor | K66: =K65*'BUDGET CALCULATOR'!C5 -> 0
B67: Total with Fuel | H67: =H65*'BUDGET CALCULATOR'!C7 -> 0
B68: Total with Irrigation | G68: =G65+'BUDGET CALCULATOR'!C8 -> 3.25
A70: Total Annual Cost | C70: =G68+H67+I65+K66 -> 12.91
A71: Total Annual Cost with ammortized reesding costs | C71: =C70+B63 -> 34.795
A73: Total Interest (6 month loan) | C73: =((C71*('BUDGET CALCULATOR'!C6/12)))/((1-((1+('BUDGET CALCULATOR'!C6/12))^-6)))*0.5 -> 
A75: TOTAL ANNUAL COST | C75: =SUM(C71:C73) -> 
A77: TOTAL PER ACRE COST | C77: =C75+C51 -> 

Sheet Switchgrass H Input-2 cut (hidden)
A1: Switchgrass | B1: HIgh Input HIgh Yield
B2: Total Yield (in tons) | C2: ='BUDGET CALCULATOR'!L17 -> 0
B3: N per cutting | C3: 60
A4: Establishment
A6: Producer | C6: Operation | D6: Equipment | E6: Additional Material Needed | F6: Amount (Unit)/Price | G6: Total Price | H6: MSBG Fuel (in gallons) | I6: MSBG Maintenance Cost | J6: MSBG Labor Hours | K6: MSBG Labor with 1.2 multiplier
C7: Plowing (FROM UNIVERSITY OF MINNESOTA EXTENSION, NOT MSGB) | D7: 4 bottom moldboard plow | H7: 1.29 | I7: =1.86+2.04 -> 3.9 | J7: =1/4.17 -> 0.2398081535 | K7: =J7*1.2 -> 0.2877697842
C8: Roller Harrow | D8: 15 foot cultipacker/rollerharrow | H8: =2.01/2.52 -> 0.7976190476 | I8: 0.41 | J8: 0.119 | K8: =J8*1.2 -> 0.1428
C9: Fertilizer Application | D9: Tractor pull cart with 40 foot swath | H9: =2.21/2.52 -> 0.876984127 | I9: 1.22 | J9: 0.138 | K9: =J9*1.2 -> 0.1656
E10: 200 pounds 18-46-0 (DAP) | F10: =703/2000 -> 0.3515 | G10: =F10*200 -> 70.3
C11: Planting | D11: 12-15 foot drill | H11: =2.45/2.52 -> 0.9722222222 | I11: 1.68 | J11: 0.139 | K11: =J11*1.2 -> 0.1668
E12: 6 pounds seed (3 Blackwell, 3 Dacotah) | F12: 2.39 | G12: =F12*6 -> 14.34
A14: Reeseding
C15: Fertilizer Application | D15: Tractor pull cart with 40 foot swath | H15: =2.21/2.52 -> 0.876984127 | I15: 1.22 | J15: 0.138 | K15: =J15*1.2 -> 0.1656
E16: 200 pounds 18-46-0 (DAP) | F16: =703/2000 -> 0.3515 | G16: =F16*200 -> 70.3
C17: Planting | D17: 12-15 foot drill | H17: =2.45/2.52 -> 0.9722222222 | I17: 1.68 | J17: 0.139 | K17: =J17*1.2 -> 0.1668
E18: 6 pounds seed (3 Blackwell, 3 Dacotah) | F18: 2.39 | G18: =F18*6 -> 14.34
A21: Irrigation | C21: Land Planing | D21: 12 foot land plane | H21: =3.74/2.52 -> 1.484126984 | I21: 1.29 | J21: 0.152 | K21: =J21*1.2 -> 0.1824
A23: Yearly
C24: Fertilizer Application | D24: Tractor pull cart with 40 foot swath | H24: =2.21/2.52 -> 0.876984127 | I24: 1.22 | J24: 0.138 | K24: =J24*1.2 -> 0.1656
E25: 60 pounds Nitrogen Urea | F25: =536/2000 -> 0.268 | G25: =F25*'BUDGET CALCULATOR'!L20 -> 0
E26: 1 Qt 2,4-D Herbacide | F26: 13/gal | G26: 3.25
C28: Swathing | D28: 14 foot swather | H28: =2.9/2.52 -> 1.150793651 | I28: 2.67 | J28: 0.172 | K28: =J28*1.2 -> 0.2064
C29: Baling | D29: Bailer | H29: =3.57/2.52 -> 1.416666667 | I29: 3.36 | J29: 0.212 | K29: =J29*1.2 -> 0.2544
C30: Hauling (FROM UNIVERSITY OF MINNESOTA EXTENSION, NOT MSGB) | D30: Baling Wagon | H30: 0.85 | I30: =1.05+0.75+0.61 -> 2.41 | J30: =1/6.76 -> 0.1479289941 | K30: =J30*1.2 -> 0.1775147929
E31: Twine/ ton | F31: 0.76 | G31: =F31*$C$2 -> 0
C32: Fertilizer Application | D32: Tractor pull cart with 40 foot swath | H32: =2.21/2.52 -> 0.876984127 | I32: 1.22 | J32: 0.138 | K32: =J32*1.2 -> 0.1656
E33: 60 pounds Nitrogen Urea | F33: =536/2000 -> 0.268 | G33: =F33*60 -> 16.08
C34: Swathing | D34: 14 foot swather | H34: =2.9/2.52 -> 1.150793651 | I34: 2.67 | J34: 0.172 | K34: =J34*1.2 -> 0.2064
C35: Baling | D35: Bailer | H35: =3.57/2.52 -> 1.416666667 | I35: 3.36 | J35: 0.212 | K35: =J35*1.2 -> 0.2544
C36: Hauling (FROM UNIVERSITY OF MINNESOTA EXTENSION, NOT MSGB) | D36: Baling Wagon | H36: 0.85 | I36: =1.05+0.75+0.61 -> 2.41 | J36: =1/6.76 -> 0.1479289941 | K36: =J36*1.2 -> 0.1775147929
E37: Twine/ ton | F37: 0.76 | G37: =F37*$C$2 -> 0
A45: Establishment Totals | G45: =SUM(G10:G12) -> 84.64 | H45: =SUM(H7:H11)+H21 -> 5.420952381 | I45: =SUM(I7:I11)+I21 -> 8.5 | J45: =SUM(J7:J11)+J21 -> 0.7878081535 | K45: =SUM(K7:K11)+K21 -> 0.9453697842
B46: Total With Labor | K46: =K45*'BUDGET CALCULATOR'!C5 -> 0
B47: Total with Fuel | H47: =H45*'BUDGET CALCULATOR'!C7 -> 0
B48: Total with Irrigation | G48: =G45+'BUDGET CALCULATOR'!C8 -> 84.64
A50: Total Establishment Cost | C50: =G48+H47+I45+K46 -> 93.14
A52: Annual Interest (Ammortized over 10 Years) | C52: =((C50*('BUDGET CALCULATOR'!C6)))/((1-(1+('BUDGET CALCULATOR'!C6))^-10)) -> 
A54: TOTAL ESTABLISHMENT COST: | C54: =SUM(C50:C52) -> 
A57: Reeseding Costs | G57: =SUM(G16:G18) -> 84.64 | H57: =SUM(H15:H17) -> 1.849206349 | I57: =SUM(I15:I17) -> 2.9 | J57: =SUM(J15:J17) -> 0.277 | K57: =SUM(K15:K17) -> 0.3324
B58: Total With Labor | K58: =K57*'BUDGET CALCULATOR'!C5 -> 0
B59: Total with Fuel | H59: =H57*'BUDGET CALCULATOR'!C7 -> 0
B60: Total with Irrigation | G60: =G57+'BUDGET CALCULATOR'!$C$8 -> 84.64
A62: Total Reeseding Costs | B62: =G60+H59+I57+K58 -> 87.54
A64: TOTAL EXPECTED REESEDING COSTS (Reeseding once every four years) | B64: =0.25*B62 -> 21.885
A66: Annual Totals | G66: =SUM(G24:G37) -> 19.33 | H66: =SUM(H24:H37) -> 8.588888889 | I66: 19.32 | J66: 1.339857988 | K66: 1.607829586
B67: Total With Labor | K67: =K66*'BUDGET CALCULATOR'!C5 -> 0
B68: Total with Fuel | H68: =H66*'BUDGET CALCULATOR'!C7 -> 0
B69: Total with Irrigation | G69: =G66+'BUDGET CALCULATOR'!C8 -> 19.33
A71: Total Annual Cost | C71: =G69+H68+I66+K67 -> 38.65
A72: Total Annual Cost with ammortized reesding costs | C72: =C71+B64 -> 60.535
A74: Total Interest (6 month loan) | C74: =((C72*('BUDGET CALCULATOR'!C6/12)))/((1-((1+('BUDGET CALCULATOR'!C6/12))^-6)))*0.5 -> 
A76: TOTAL ANNUAL COST | C76: =SUM(C72:C74) -> 
A78: TOTAL PER ACRE COST | C78: =C76+C52 -> 

Sheet Switchgrass H Input-3 cut (hidden)
A1: Switchgrass | B1: HIgh Input HIgh Yield
B2: Total Yield (in tons) | C2: ='BUDGET CALCULATOR'!L17 -> 0
B3: N per Cutting | C3: 60
A4: Establishment
A6: Producer | C6: Operation | D6: Equipment | E6: Additional Material Needed | F6: Amount (Unit)/Price | G6: Total Price | H6: MSBG Fuel (in gallons) | I6: MSBG Maintenance Cost | J6: MSBG Labor Hours | K6: MSBG Labor with 1.2 multiplier
C7: Plowing (FROM UNIVERSITY OF MINNESOTA EXTENSION, NOT MSGB) | D7: 4 bottom moldboard plow | H7: 1.29 | I7: =1.86+2.04 -> 3.9 | J7: =1/4.17 -> 0.2398081535 | K7: =J7*1.2 -> 0.2877697842
C8: Roller Harrow | D8: 15 foot cultipacker/rollerharrow | H8: =2.01/2.52 -> 0.7976190476 | I8: 0.41 | J8: 0.119 | K8: =J8*1.2 -> 0.1428
C9: Fertilizer Application | D9: Tractor pull cart with 40 foot swath | H9: =2.21/2.52 -> 0.876984127 | I9: 1.22 | J9: 0.138 | K9: =J9*1.2 -> 0.1656
E10: 200 pounds 18-46-0 (DAP) | F10: =703/2000 -> 0.3515 | G10: =F10*200 -> 70.3
C11: Planting | D11: 12-15 foot drill | H11: =2.45/2.52 -> 0.9722222222 | I11: 1.68 | J11: 0.139 | K11: =J11*1.2 -> 0.1668
E12: 6 pounds seed (3 Blackwell, 3 Dacotah) | F12: 2.39 | G12: =F12*6 -> 14.34
A14: Reeseding
C15: Fertilizer Application | D15: Tractor pull cart with 40 foot swath | H15: =2.21/2.52 -> 0.876984127 | I15: 1.22 | J15: 0.138 | K15: =J15*1.2 -> 0.1656
E16: 200 pounds 18-46-0 (DAP) | F16: =703/2000 -> 0.3515 | G16: =F16*200 -> 70.3
C17: Planting | D17: 12-15 foot drill | H17: =2.45/2.52 -> 0.9722222222 | I17: 1.68 | J17: 0.139 | K17: =J17*1.2 -> 0.1668
E18: 6 pounds seed (3 Blackwell, 3 Dacotah) | F18: 2.39 | G18: =F18*6 -> 14.34
A21: Irrigation | C21: Land Planing | D21: 12 foot land plane | H21: =3.74/2.52 -> 1.484126984 | I21: 1.29 | J21: 0.152 | K21: =J21*1.2 -> 0.1824
A23: Yearly
C24: Fertilizer Application | D24: Tractor pull cart with 40 foot swath | H24: =2.21/2.52 -> 0.876984127 | I24: 1.22 | J24: 0.138 | K24: =J24*1.2 -> 0.1656
E25: 60 pounds Nitrogen Urea | F25: =536/2000 -> 0.268 | G25: =F25*'BUDGET CALCULATOR'!L20 -> 0
E26: 1 Qt 2,4-D Herbacide | F26: 13/gal | G26: 3.25
C28: Swathing | D28: 14 foot swather | H28: =2.9/2.52 -> 1.150793651 | I28: 2.67 | J28: 0.172 | K28: =J28*1.2 -> 0.2064
C29: Baling | D29: Bailer | H29: =3.57/2.52 -> 1.416666667 | I29: 3.36 | J29: 0.212 | K29: =J29*1.2 -> 0.2544
C30: Hauling (FROM UNIVERSITY OF MINNESOTA EXTENSION, NOT MSGB) | D30: Baling Wagon | H30: 0.85 | I30: =1.05+0.75+0.61 -> 2.41 | J30: =1/6.76 -> 0.1479289941 | K30: =J30*1.2 -> 0.1775147929
E31: Twine/ ton | F31: 0.76 | G31: =F31*$C$2 -> 0
C32: Fertilizer Application | D32: Tractor pull cart with 40 foot swath | H32: =2.21/2.52 -> 0.876984127 | I32: 1.22 | J32: 0.138 | K32: =J32*1.2 -> 0.1656
E33: 60 pounds Nitrogen Urea | F33: =536/2000 -> 0.268 | G33: =F33*60 -> 16.08
C34: Swathing | D34: 14 foot swather | H34: =2.9/2.52 -> 1.150793651 | I34: 2.67 | J34: 0.172 | K34: =J34*1.2 -> 0.2064
C35: Baling | D35: Bailer | H35: =3.57/2.52 -> 1.416666667 | I35: 3.36 | J35: 0.212 | K35: =J35*1.2 -> 0.2544
C36: Hauling (FROM UNIVERSITY OF MINNESOTA EXTENSION, NOT MSGB) | D36: Baling Wagon | H36: 0.85 | I36: =1.05+0.75+0.61 -> 2.41 | J36: =1/6.76 -> 0.1479289941 | K36: =J36*1.2 -> 0.1775147929
E37: Twine/ ton | F37: 0.76 | G37: =F37*$C$2 -> 0
C38: Fertilizer Application | D38: Tractor pull cart with 40 foot swath | H38: =2.21/2.52 -> 0.876984127 | I38: 1.22 | J38: 0.138 | K38: =J38*1.2 -> 0.1656
E39: 60 pounds Nitrogen Urea | F39: =536/2000 -> 0.268 | G39: =F39*60 -> 16.08
C40: Swathing | D40: 14 foot swather | H40: =2.9/2.52 -> 1.150793651 | I40: 2.67 | J40: 0.172 | K40: =J40*1.2 -> 0.2064
C41: Baling | D41: Bailer | H41: =3.57/2.52 -> 1.416666667 | I41: 3.36 | J41: 0.212 | K41: =J41*1.2 -> 0.2544
C42: Hauling (FROM UNIVERSITY OF MINNESOTA EXTENSION, NOT MSGB) | D42: Baling Wagon | H42: 0.85 | I42: =1.05+0.75+0.61 -> 2.41 | J42: =1/6.76 -> 0.1479289941 | K42: =J42*1.2 -> 0.1775147929
E43: Twine/ ton | F43: 0.76 | G43: =F43*$C$2 -> 0
A51: Establishment Totals | G51: =SUM(G10:G12) -> 84.64 | H51: =SUM(H7:H11)+H21 -> 5.420952381 | I51: =SUM(I7:I11)+I21 -> 8.5 | J51: =SUM(J7:J11)+J21 -> 0.7878081535 | K51: =SUM(K7:K11)+K21 -> 0.9453697842
B52: Total With Labor | K52: =K51*'BUDGET CALCULATOR'!C5 -> 0
B53: Total with Fuel | H53: =H51*'BUDGET CALCULATOR'!C7 -> 0
B54: Total with Irrigation | G54: =G51+'BUDGET CALCULATOR'!C8 -> 84.64
A56: Total Establishment Cost | C56: =G54+H53+I51+K52 -> 93.14
A58: Annual Interest (Ammortized over 10 Years) | C58: =((C56*('BUDGET CALCULATOR'!C6)))/((1-(1+('BUDGET CALCULATOR'!C6))^-10)) -> 
A60: TOTAL ESTABLISHMENT COST: | C60: =SUM(C56:C58) -> 
A63: Reeseding Costs | G63: =SUM(G16:G18) -> 84.64 | H63: =SUM(H15:H17) -> 1.849206349 | I63: =SUM(I15:I17) -> 2.9 | J63: =SUM(J15:J17) -> 0.277 | K63: =SUM(K15:K17) -> 0.3324
B64: Total With Labor | K64: =K63*'BUDGET CALCULATOR'!C5 -> 0
B65: Total with Fuel | H65: =H63*'BUDGET CALCULATOR'!C7 -> 0
B66: Total with Irrigation | G66: =G63+'BUDGET CALCULATOR'!$C$8 -> 84.64
A68: Total Reeseding Costs | B68: =G66+H65+I63+K64 -> 87.54
A70: TOTAL EXPECTED REESEDING COSTS (Reeseding once every four years) | B70: =0.25*B68 -> 21.885
A72: Annual Totals | G72: =SUM(G24:G43) -> 35.41 | H72: =SUM(H24:H43) -> 12.88333333 | I72: =SUM(I24:I43) -> 28.98 | J72: =SUM(J24:J43) -> 2.009786982 | K72: =SUM(K24:K43) -> 2.411744379
B73: Total With Labor | K73: =K72*'BUDGET CALCULATOR'!C5 -> 0
B74: Total with Fuel | H74: =H72*'BUDGET CALCULATOR'!C7 -> 0
B75: Total with Irrigation | G75: =G72+'BUDGET CALCULATOR'!C8 -> 35.41
A77: Total Annual Cost | C77: =G75+H74+I72+K73 -> 64.39
A78: Total Annual Cost with ammortized reesding costs | C78: =C77+B70 -> 86.275
A80: Total Interest (6 month loan) | C80: =((C78*('BUDGET CALCULATOR'!C6/12)))/((1-((1+('BUDGET CALCULATOR'!C6/12))^-6)))*0.5 -> 
A82: TOTAL ANNUAL COST | C82: =SUM(C78:C80) -> 
A84: TOTAL PER ACRE COST | C84: =C82+C58 -> 

Sheet Tall Fescue H Input-1 cut (hidden)
A1: Tall Fescue | B1: High Input Low Yield
B2: Total Yield (in tons) | C2: ='BUDGET CALCULATOR'!I17 -> 0
B3: N Per Cutting | C3: 120
A4: Establishment
A6: Producer | C6: Operation | D6: Equipment | E6: Additional Material Needed | F6: Amount (Unit)/Price | G6: Total Price | H6: MSBG Fuel (in gallons) | I6: MSBG Maintenance Cost | J6: MSBG Labor Hours | K6: MSBG Labor with 1.2 multiplier
C7: Plowing (FROM UNIVERSITY OF MINNESOTA EXTENSION, NOT MSGB) | D7: 4 bottom moldboard plow | H7: 1.29 | I7: =1.86+2.04 -> 3.9 | J7: =1/4.17 -> 0.2398081535 | K7: =J7*1.2 -> 0.2877697842
C8: Roller Harrow | D8: 15 foot cultipacker/rollerharrow | H8: =2.01/2.52 -> 0.7976190476 | I8: 0.41 | J8: 0.119 | K8: =J8*1.2 -> 0.1428
C9: Fertilizer Application | D9: Tractor pull cart with 40 foot swath | H9: =2.21/2.52 -> 0.876984127 | I9: 1.22 | J9: 0.138 | K9: 0.1656
E10: 200 pounds 18-46-0 (DAP) | F10: =703/2000 -> 0.3515 | G10: =F10*200 -> 70.3
C11: Planting | D11: 12-15 foot drill | H11: =2.45/2.52 -> 0.9722222222 | I11: 1.68 | J11: 0.139 | K11: 0.1668
E12: 10 pounds seed (10 Fawn or Alta) | F12: 0.65 | G12: =F12*10 -> 6.5
A15: Irrigation | C15: Land Planing | D15: 12 foot land plane | H15: =3.74/2.52 -> 1.484126984 | I15: 1.29 | J15: 0.152 | K15: 0.1824
A18: Yearly
C19: Operation | D19: Equipment | E19: Material Needed | F19: Amount (Unit)/Price | G19: Total Price
C21: Fertilizer Application | D21: Tractor pull cart with 40 foot swath | H21: =2.21/2.52 -> 0.876984127 | I21: 1.22 | J21: 0.138 | K21: =J21*1.2 -> 0.1656
E22: 120 pounds Nitrogen Urea | F22: =536/2000 -> 0.268 | G22: =F22*'BUDGET CALCULATOR'!I20 -> 0
C23: Swathing | D23: 14 foot swather | H23: =2.9/2.52 -> 1.150793651 | I23: 2.67 | J23: 0.172 | K23: =J23*1.2 -> 0.2064
C24: Baling | D24: Bailer | H24: =3.57/2.52 -> 1.416666667 | I24: 3.36 | J24: 0.212 | K24: =J24*1.2 -> 0.2544
C25: Hauling (FROM UNIVERSITY OF MINNESOTA EXTENSION, NOT MSGB) | D25: Baling Wagon | H25: 0.85 | I25: =1.05+0.75+0.61 -> 2.41 | J25: =1/6.76 -> 0.1479289941 | K25: =J25*1.2 -> 0.1775147929
E26: Twine/ ton | F26: 0.76 | G26: =F26*$C$2 -> 0
A48: Establishment Totals | G48: =SUM(G10:G12) -> 76.8 | H48: =SUM(H7:H11)+H15 -> 5.420952381 | I48: =SUM(I7:I11)+I15 -> 8.5 | J48: =SUM(J7:J11)+J15 -> 0.7878081535 | K48: =SUM(K7:K11)+K15 -> 0.9453697842
B49: Total With Labor | K49: =K48*'BUDGET CALCULATOR'!C5 -> 0
B50: Total with Fuel | H50: =H48*'BUDGET CALCULATOR'!C7 -> 0
B51: Total with Irrigation | G51: =G48+'BUDGET CALCULATOR'!C8 -> 76.8
A53: Total Establishment Cost | C53: =G51+H50+I48+K49 -> 85.3
A55: Annual Interest (Ammortized over 10 Years) | C55: =((C53*('BUDGET CALCULATOR'!C6)))/((1-(1+('BUDGET CALCULATOR'!C6))^-10)) -> 
A57: TOTAL ESTABLISHMENT COST: | C57: =SUM(C53:C55) -> 
A60: Annual Totals | G60: =SUM(G21:G30) -> 0 | H60: =SUM(H15:H30) -> 5.778571429 | I60: =SUM(I15:I30) -> 10.95 | J60: =SUM(J15:J30) -> 0.8219289941 | K60: =SUM(K15:K30) -> 0.9863147929
B61: Total With Labor | K61: =K60*'BUDGET CALCULATOR'!C5 -> 0
B62: Total with Fuel | H62: =H60*'BUDGET CALCULATOR'!C7 -> 0
B63: Total with Irrigation | G63: =G60+'BUDGET CALCULATOR'!C8 -> 0
A65: Total Annual Cost | C65: =G63+H62+I60+K61 -> 10.95
A67: Total Interest (6 month loan) | C67: =((C65*('BUDGET CALCULATOR'!C6/12)))/((1-((1+('BUDGET CALCULATOR'!C6/12))^-6)))*0.5 -> 
A69: TOTAL ANNUAL COST | C69: =SUM(C65:C67) -> 
A71: TOTAL PER ACRE COST (Efficient Producer) | C71: =C69+C55 -> 

Sheet Tall Fescue H Input-2 cut (hidden)
A1: Tall Fescue | B1: High Input High Yield
B2: Total Yield (in tons) | C2: ='BUDGET CALCULATOR'!I17 -> 0
B3: N Per Cutting | C3: 60
A4: Establishment
A6: Producer | C6: Operation | D6: Equipment | E6: Additional Material Needed | F6: Amount (Unit)/Price | G6: Total Price | H6: MSBG Fuel (in gallons) | I6: MSBG Maintenance Cost | J6: MSBG Labor Hours | K6: MSBG Labor with 1.2 multiplier
C7: Plowing (FROM UNIVERSITY OF MINNESOTA EXTENSION, NOT MSGB) | D7: 4 bottom moldboard plow | H7: 1.29 | I7: =1.86+2.04 -> 3.9 | J7: =1/4.17 -> 0.2398081535 | K7: =J7*1.2 -> 0.2877697842
C8: Roller Harrow | D8: 15 foot cultipacker/rollerharrow | H8: =2.01/2.52 -> 0.7976190476 | I8: 0.41 | J8: 0.119 | K8: =J8*1.2 -> 0.1428
C9: Fertilizer Application | D9: Tractor pull cart with 40 foot swath | H9: =2.21/2.52 -> 0.876984127 | I9: 1.22 | J9: 0.138 | K9: 0.1656
E10: 200 pounds 18-46-0 (DAP) | F10: =703/2000 -> 0.3515 | G10: =F10*200 -> 70.3
C11: Planting | D11: 12-15 foot drill | H11: =2.45/2.52 -> 0.9722222222 | I11: 1.68 | J11: 0.139 | K11: 0.1668
E12: 10 pounds seed (10 Fawn or Alta) | F12: 0.65 | G12: =F12*10 -> 6.5
A15: Irrigation | C15: Land Planing | D15: 12 foot land plane | H15: =3.74/2.52 -> 1.484126984 | I15: 1.29 | J15: 0.152 | K15: 0.1824
A18: Yearly
C19: Operation | D19: Equipment | E19: Material Needed | F19: Amount (Unit)/Price | G19: Total Price
C21: Fertilizer Application | D21: Tractor pull cart with 40 foot swath | H21: =2.21/2.52 -> 0.876984127 | I21: 1.22 | J21: 0.138 | K21: =J21*1.2 -> 0.1656
E22: 60 pounds Nitrogen Urea | F22: =536/2000 -> 0.268 | G22: =F22*'BUDGET CALCULATOR'!I20 -> 0
C23: Swathing | D23: 14 foot swather | H23: =2.9/2.52 -> 1.150793651 | I23: 2.67 | J23: 0.172 | K23: =J23*1.2 -> 0.2064
C24: Baling | D24: Bailer | H24: =3.57/2.52 -> 1.416666667 | I24: 3.36 | J24: 0.212 | K24: 0.2544
C25: Hauling (FROM UNIVERSITY OF MINNESOTA EXTENSION, NOT MSGB) | D25: Baling Wagon | H25: 0.85 | I25: =1.05+0.75+0.61 -> 2.41 | J25: =1/6.76 -> 0.1479289941 | K25: =J25*1.2 -> 0.1775147929
C26: Fertilizer Application | D26: Tractor pull cart with 40 foot swath | H26: =2.21/2.52 -> 0.876984127 | I26: 1.22 | J26: 0.138 | K26: 0.1656
E27: 60 pounds Nitrogen Urea | F27: =536/2000 -> 0.268 | G27: =F27*'BUDGET CALCULATOR'!I20 -> 0
C28: Swathing | D28: 14 foot swather | H28: =2.9/2.52 -> 1.150793651 | I28: 2.67 | J28: 0.172 | K28: 0.2064
C29: Baling | D29: Bailer | H29: =3.57/2.52 -> 1.416666667 | I29: 3.36 | J29: 0.212 | K29: 0.2544
C30: Hauling (FROM UNIVERSITY OF MINNESOTA EXTENSION, NOT MSGB) | D30: Baling Wagon | H30: 0.85 | I30: =1.05+0.75+0.61 -> 2.41 | J30: =1/6.76 -> 0.1479289941 | K30: =J30*1.2 -> 0.1775147929
E31: Twine/ ton | F31: 0.76 | G31: =F31*$C$2 -> 0
A48: Establishment Totals | G48: =SUM(G10:G12) -> 76.8 | H48: =SUM(H7:H11)+H15 -> 5.420952381 | I48: =SUM(I7:I11)+I15 -> 8.5 | J48: =SUM(J7:J11)+J15 -> 0.7878081535 | K48: =SUM(K7:K11)+K15 -> 0.9453697842
B49: Total With Labor | K49: =K48*'BUDGET CALCULATOR'!C5 -> 0
B50: Total with Fuel | H50: =H48*'BUDGET CALCULATOR'!C7 -> 0
B51: Total with Irrigation | G51: =G48+'BUDGET CALCULATOR'!C8 -> 76.8
A53: Total Establishment Cost | C53: =G51+H50+I48+K49 -> 85.3
A55: Annual Interest (Ammortized over 10 Years) | C55: =((C53*('BUDGET CALCULATOR'!C6)))/((1-(1+('BUDGET CALCULATOR'!C6))^-10)) -> 
A57: TOTAL ESTABLISHMENT COST: | C57: =SUM(C53:C55) -> 
A60: Annual Totals | G60: =SUM(G21:G30) -> 0 | H60: =SUM(H15:H30) -> 10.07301587 | I60: =SUM(I15:I30) -> 20.61 | J60: =SUM(J15:J30) -> 1.491857988 | K60: =SUM(K15:K30) -> 1.790229586
B61: Total With Labor | K61: =K60*'BUDGET CALCULATOR'!C5 -> 0
B62: Total with Fuel | H62: =H60*'BUDGET CALCULATOR'!C7 -> 0
B63: Total with Irrigation | G63: =G60+'BUDGET CALCULATOR'!C8 -> 0
A65: Total Annual Cost | C65: =G63+H62+I60+K61 -> 20.61
A67: Total Interest (6 month loan) | C67: =((C65*('BUDGET CALCULATOR'!C6/12)))/((1-((1+('BUDGET CALCULATOR'!C6/12))^-6)))*0.5 -> 
A69: TOTAL ANNUAL COST | C69: =SUM(C65:C67) -> 
A71: TOTAL PER ACRE COST (Efficient Producer) | C71: =C69+C55 -> 

Sheet Tall Fescue H Input-3 cut (hidden)
A1: Tall Fescue | B1: High Input High Yield
B2: Total Yield (in tons) | C2: ='BUDGET CALCULATOR'!I17 -> 0
B3: N Per Cutting | C3: 60
A4: Establishment
A6: Producer | C6: Operation | D6: Equipment | E6: Additional Material Needed | F6: Amount (Unit)/Price | G6: Total Price | H6: MSBG Fuel (in gallons) | I6: MSBG Maintenance Cost | J6: MSBG Labor Hours | K6: MSBG Labor with 1.2 multiplier
C7: Plowing (FROM UNIVERSITY OF MINNESOTA EXTENSION, NOT MSGB) | D7: 4 bottom moldboard plow | H7: 1.29 | I7: =1.86+2.04 -> 3.9 | J7: =1/4.17 -> 0.2398081535 | K7: =J7*1.2 -> 0.2877697842
C8: Roller Harrow | D8: 15 foot cultipacker/rollerharrow | H8: =2.01/2.52 -> 0.7976190476 | I8: 0.41 | J8: 0.119 | K8: =J8*1.2 -> 0.1428
C9: Fertilizer Application | D9: Tractor pull cart with 40 foot swath | H9: =2.21/2.52 -> 0.876984127 | I9: 1.22 | J9: 0.138 | K9: 0.1656
E10: 200 pounds 18-46-0 (DAP) | F10: =703/2000 -> 0.3515 | G10: =F10*200 -> 70.3
C11: Planting | D11: 12-15 foot drill | H11: =2.45/2.52 -> 0.9722222222 | I11: 1.68 | J11: 0.139 | K11: 0.1668
E12: 10 pounds seed (10 Fawn or Alta) | F12: 0.65 | G12: =F12*10 -> 6.5
A15: Irrigation | C15: Land Planing | D15: 12 foot land plane | H15: =3.74/2.52 -> 1.484126984 | I15: 1.29 | J15: 0.152 | K15: 0.1824
A18: Yearly
C19: Operation | D19: Equipment | E19: Material Needed | F19: Amount (Unit)/Price | G19: Total Price
C21: Fertilizer Application | D21: Tractor pull cart with 40 foot swath | H21: =2.21/2.52 -> 0.876984127 | I21: 1.22 | J21: 0.138 | K21: =J21*1.2 -> 0.1656
E22: 60 pounds Nitrogen Urea | F22: =536/2000 -> 0.268 | G22: =F22*'BUDGET CALCULATOR'!I20 -> 0
C23: Swathing | D23: 14 foot swather | H23: =2.9/2.52 -> 1.150793651 | I23: 2.67 | J23: 0.172 | K23: =J23*1.2 -> 0.2064
C24: Baling | D24: Bailer | H24: =3.57/2.52 -> 1.416666667 | I24: 3.36 | J24: 0.212 | K24: 0.2544
C25: Hauling (FROM UNIVERSITY OF MINNESOTA EXTENSION, NOT MSGB) | D25: Baling Wagon | H25: 0.85 | I25: =1.05+0.75+0.61 -> 2.41 | J25: =1/6.76 -> 0.1479289941 | K25: =J25*1.2 -> 0.1775147929
C26: Fertilizer Application | D26: Tractor pull cart with 40 foot swath | H26: =2.21/2.52 -> 0.876984127 | I26: 1.22 | J26: 0.138 | K26: 0.1656
E27: 60 pounds Nitrogen Urea | F27: =536/2000 -> 0.268 | G27: =F27*'BUDGET CALCULATOR'!I20 -> 0
C28: Swathing | D28: 14 foot swather | H28: =2.9/2.52 -> 1.150793651 | I28: 2.67 | J28: 0.172 | K28: 0.2064
C29: Baling | D29: Bailer | H29: =3.57/2.52 -> 1.416666667 | I29: 3.36 | J29: 0.212 | K29: 0.2544
C30: Hauling (FROM UNIVERSITY OF MINNESOTA EXTENSION, NOT MSGB) | D30: Baling Wagon | H30: 0.85 | I30: =1.05+0.75+0.61 -> 2.41 | J30: =1/6.76 -> 0.1479289941 | K30: =J30*1.2 -> 0.1775147929
E31: Twine/ ton | F31: 0.76 | G31: =F31*$C$2 -> 0
C32: Fertilizer Application | D32: Tractor pull cart with 40 foot swath | H32: =2.21/2.52 -> 0.876984127 | I32: 1.22 | J32: 0.138 | K32: =J32*1.2 -> 0.1656
E33: 60 pounds Nitrogen Urea | F33: =536/2000 -> 0.268 | G33: =F33*'BUDGET CALCULATOR'!I20 -> 0
C34: Swathing | D34: 14 foot swather | H34: =2.9/2.52 -> 1.150793651 | I34: 2.67 | J34: 0.172 | K34: =J34*1.2 -> 0.2064
C35: Baling | D35: Bailer | H35: =3.57/2.52 -> 1.416666667 | I35: 3.36 | J35: 0.212 | K35: 0.2544
C36: Hauling (FROM UNIVERSITY OF MINNESOTA EXTENSION, NOT MSGB) | D36: Baling Wagon | H36: 0.85 | I36: =1.05+0.75+0.61 -> 2.41 | J36: =1/6.76 -> 0.1479289941 | K36: =J36*1.2 -> 0.1775147929
E37: Twine/ ton | F37: 0.76 | G37: =F37*$C$2 -> 0
A48: Establishment Totals | G48: =SUM(G10:G12) -> 76.8 | H48: =SUM(H7:H11)+H15 -> 5.420952381 | I48: =SUM(I7:I11)+I15 -> 8.5 | J48: =SUM(J7:J11)+J15 -> 0.7878081535 | K48: =SUM(K7:K11)+K15 -> 0.9453697842
B49: Total With Labor | K49: =K48*'BUDGET CALCULATOR'!C5 -> 0
B50: Total with Fuel | H50: =H48*'BUDGET CALCULATOR'!C7 -> 0
B51: Total with Irrigation | G51: =G48+'BUDGET CALCULATOR'!C8 -> 76.8
A53: Total Establishment Cost | C53: =G51+H50+I48+K49 -> 85.3
A55: Annual Interest (Ammortized over 10 Years) | C55: =((C53*('BUDGET CALCULATOR'!C6)))/((1-(1+('BUDGET CALCULATOR'!C6))^-10)) -> 
A57: TOTAL ESTABLISHMENT COST: | C57: =SUM(C53:C55) -> 
A60: Annual Totals | G60: =SUM(G21:G37) -> 0 | H60: =SUM(H15:H37) -> 14.36746032 | I60: =SUM(I15:I37) -> 30.27 | J60: =SUM(J15:J37) -> 2.161786982 | K60: =SUM(K15:K37) -> 2.594144379
B61: Total With Labor | K61: =K60*'BUDGET CALCULATOR'!C5 -> 0
B62: Total with Fuel | H62: =H60*'BUDGET CALCULATOR'!C7 -> 0
B63: Total with Irrigation | G63: =G60+'BUDGET CALCULATOR'!C8 -> 0
A65: Total Annual Cost | C65: =G63+H62+I60+K61 -> 30.27
A67: Total Interest (6 month loan) | C67: =((C65*('BUDGET CALCULATOR'!C6/12)))/((1-((1+('BUDGET CALCULATOR'!C6/12))^-6)))*0.5 -> 
A69: TOTAL ANNUAL COST | C69: =SUM(C65:C67) -> 
A71: TOTAL PER ACRE COST (Efficient Producer) | C71: =C69+C55 -> 

Sheet Introduced Mix L Input-1 cut (hidden)
A1: Introduced Mix | B1: Low Input Low Yield
B2: Total Yield (in tons) | C2: ='BUDGET CALCULATOR'!F17 -> 0
B3: N Per Cutting | C3: 60
A4: Establishment
A6: Producer | C6: Operation | D6: Equipment | E6: Additional Material Needed | F6: Amount (Unit)/Price | G6: Total Price | H6: MSBG Fuel (in gallons) | I6: MSBG Maintenance Cost | J6: MSBG Labor Hours | K6: MSBG Labor with 1.2 multiplier
C7: Plowing (FROM UNIVERSITY OF MINNESOTA EXTENSION, NOT MSGB) | D7: 4 bottom moldboard plow | H7: 1.29 | I7: =1.86+2.04 -> 3.9 | J7: =1/4.17 -> 0.2398081535 | K7: =J7*1.2 -> 0.2877697842
C8: Roller Harrow | D8: 15 foot cultipacker/rollerharrow | H8: =2.01/2.52 -> 0.7976190476 | I8: 0.41 | J8: 0.119 | K8: =J8*1.2 -> 0.1428
C9: Fertilizer Application | D9: Tractor pull cart with 40 foot swath | H9: =2.21/2.52 -> 0.876984127 | I9: 1.22 | J9: 0.138 | K9: 0.1656
E10: 200 pounds 18-46-0 (DAP) | F10: =703/2000 -> 0.3515 | G10: =F10*200 -> 70.3
C11: Planting | D11: 12-15 foot drill | H11: =2.45/2.52 -> 0.9722222222 | I11: 1.68 | J11: 0.139 | K11: 0.1668
E12: 20 pounds seed (7 Meadow Brome-Cache, 4 Tall Fescue-Fawn, 4 Orchardgrass, 4 Alfala) | F12: 1.5 | G12: =F12*20 -> 30
A15: Irrigation | C15: Land Planing | D15: 12 foot land plane | H15: =3.74/2.52 -> 1.484126984 | I15: 1.29 | J15: 0.152 | K15: 0.1824
A18: Yearly
C19: Operation | D19: Equipment | E19: Material Needed | F19: Amount (Unit)/Price | G19: Total Price
C21: Fertilizer Application | D21: Tractor pull cart with 40 foot swath | H21: =2.21/2.52 -> 0.876984127 | I21: 1.22 | J21: 0.138 | K21: =J21*1.2 -> 0.1656
E22: 60 pounds Nitrogen Urea | F22: =536/2000 -> 0.268 | G22: =F22*'BUDGET CALCULATOR'!F20 -> 0
C23: Swathing | D23: 14 foot swather | H23: =2.9/2.52 -> 1.150793651 | I23: 2.67 | J23: 0.172 | K23: =J23*1.2 -> 0.2064
C24: Baling | D24: Bailer | H24: =3.57/2.52 -> 1.416666667 | I24: 3.36 | J24: 0.212 | K24: =J24*1.2 -> 0.2544
C25: Hauling (FROM UNIVERSITY OF MINNESOTA EXTENSION, NOT MSGB) | D25: Baling Wagon | H25: 0.85 | I25: =1.05+0.75+0.61 -> 2.41 | J25: =1/6.76 -> 0.1479289941 | K25: =J25*1.2 -> 0.1775147929
E26: Twine/ ton | F26: 0.76 | G26: =F26*$C$2 -> 0
A48: Establishment Totals | G48: =SUM(G10:G12) -> 100.3 | H48: =SUM(H7:H11)+H15 -> 5.420952381 | I48: =SUM(I7:I11)+I15 -> 8.5 | J48: =SUM(J7:J11)+J15 -> 0.7878081535 | K48: =SUM(K7:K11)+K15 -> 0.9453697842
B49: Total With Labor | K49: =K48*'BUDGET CALCULATOR'!C5 -> 0
B50: Total with Fuel | H50: =H48*'BUDGET CALCULATOR'!C7 -> 0
B51: Total with Irrigation | G51: =G48+'BUDGET CALCULATOR'!C8 -> 100.3
A53: Total Establishment Cost | C53: =G51+H50+I48+K49 -> 108.8
A55: Annual Interest (Ammortized over 10 Years) | C55: =((C53*('BUDGET CALCULATOR'!C6)))/((1-(1+('BUDGET CALCULATOR'!C6))^-10)) -> 
A57: TOTAL ESTABLISHMENT COST: | C57: =SUM(C53:C55) -> 
A60: Annual Totals | G60: =SUM(G21:G30) -> 0 | H60: =SUM(H15:H30) -> 5.778571429 | I60: =SUM(I15:I30) -> 10.95 | J60: =SUM(J15:J30) -> 0.8219289941 | K60: =SUM(K15:K30) -> 0.9863147929
B61: Total With Labor | K61: =K60*'BUDGET CALCULATOR'!C5 -> 0
B62: Total with Fuel | H62: =H60*'BUDGET CALCULATOR'!C7 -> 0
B63: Total with Irrigation | G63: =G60+'BUDGET CALCULATOR'!C8 -> 0
A65: Total Annual Cost | C65: =G63+H62+I60+K61 -> 10.95
A67: Total Interest (6 month loan) | C67: =((C65*('BUDGET CALCULATOR'!C6/12)))/((1-((1+('BUDGET CALCULATOR'!C6/12))^-6)))*0.5 -> 
A69: TOTAL ANNUAL COST | C69: =SUM(C65:C67) -> 
A71: TOTAL PER ACRE COST (Efficient Producer) | C71: =C69+C55 -> 

Sheet Introduced Mix L Input-2 cut (hidden)
A1: Introduced Mix | B1: Low Input High Yield
B2: Total Yield (in tons) | C2: ='BUDGET CALCULATOR'!F17 -> 0
B3: N Per Cutting | C3: 30
A4: Establishment
C5: Operation | D5: Equipment | E5: Additional Material Needed | F5: Amount (Unit)/Price | G5: Total Price | H5: MSBG Fuel (in gallons) | I5: MSBG Maintenance Cost | J5: MSBG Labor Hours | K5: MSBG Labor with 1.2 multiplier
A6: Producer
C7: Plowing (FROM UNIVERSITY OF MINNESOTA EXTENSION, NOT MSGB) | D7: 4 bottom moldboard plow | H7: 1.29 | I7: =1.86+2.04 -> 3.9 | J7: =1/4.17 -> 0.2398081535 | K7: =J7*1.2 -> 0.2877697842
C8: Roller Harrow | D8: 15 foot cultipacker/rollerharrow | H8: =2.01/2.52 -> 0.7976190476 | I8: 0.41 | J8: 0.119 | K8: =J8*1.2 -> 0.1428
C9: Fertilizer Application | D9: Tractor pull cart with 40 foot swath | H9: =2.21/2.52 -> 0.876984127 | I9: 1.22 | J9: 0.138 | K9: 0.1656
E10: 200 pounds 18-46-0 (DAP) | F10: =703/2000 -> 0.3515 | G10: =F10*200 -> 70.3
C11: Planting | D11: 12-15 foot drill | H11: =2.45/2.52 -> 0.9722222222 | I11: 1.68 | J11: 0.139 | K11: 0.1668
E12: 20 pounds seed (7 Meadow Brome-Cache, 4 Tall Fescue-Fawn, 4 Orchardgrass, 4 Alfala) | F12: 1.5 | G12: =F12*20 -> 30
A15: Irrigation | C15: Land Planing | D15: 12 foot land plane | H15: =3.74/2.52 -> 1.484126984 | I15: 1.29 | J15: 0.152 | K15: 0.1824
A18: Yearly
C19: Operation | D19: Equipment | E19: Material Needed | F19: Amount (Unit)/Price | G19: Total Price
C21: Fertilizer Application | D21: Tractor pull cart with 40 foot swath | H21: =2.21/2.52 -> 0.876984127 | I21: 1.22 | J21: 0.138 | K21: =J21*1.2 -> 0.1656
E22: 30 pounds Nitrogen Urea | F22: =536/2000 -> 0.268 | G22: =F22*'BUDGET CALCULATOR'!F20 -> 0
C23: Swathing | D23: 14 foot swather | H23: =2.9/2.52 -> 1.150793651 | I23: 2.67 | J23: 0.172 | K23: =J23*1.2 -> 0.2064
C24: Baling | D24: Bailer | H24: =3.57/2.52 -> 1.416666667 | I24: 3.36 | J24: 0.212 | K24: 0.2544
C25: Hauling (FROM UNIVERSITY OF MINNESOTA EXTENSION, NOT MSGB) | D25: Baling Wagon | H25: 0.85 | I25: =1.05+0.75+0.61 -> 2.41 | J25: =1/6.76 -> 0.1479289941 | K25: =J25*1.2 -> 0.1775147929
C26: Fertilizer Application | D26: Tractor pull cart with 40 foot swath | H26: =2.21/2.52 -> 0.876984127 | I26: 1.22 | J26: 0.138 | K26: 0.1656
E27: 30 pounds Nitrogen Urea | F27: =536/2000 -> 0.268 | G27: =F27*'BUDGET CALCULATOR'!F20 -> 0
C28: Swathing | D28: 14 foot swather | H28: =2.9/2.52 -> 1.150793651 | I28: 2.67 | J28: 0.172 | K28: 0.2064
C29: Baling | D29: Bailer | H29: =3.57/2.52 -> 1.416666667 | I29: 3.36 | J29: 0.212 | K29: 0.2544
C30: Hauling (FROM UNIVERSITY OF MINNESOTA EXTENSION, NOT MSGB) | D30: Baling Wagon | H30: 0.85 | I30: =1.05+0.75+0.61 -> 2.41 | J30: =1/6.76 -> 0.1479289941 | K30: =J30*1.2 -> 0.1775147929
E31: Twine/ ton | F31: 0.76 | G31: =F31*$C$2 -> 0
A48: Establishment Totals | G48: =SUM(G10:G12) -> 100.3 | H48: =SUM(H7:H11)+H15 -> 5.420952381 | I48: =SUM(I7:I11)+I15 -> 8.5 | J48: =SUM(J7:J11)+J15 -> 0.7878081535 | K48: =SUM(K7:K11)+K15 -> 0.9453697842
B49: Total With Labor | K49: =K48*'BUDGET CALCULATOR'!C5 -> 0
B50: Total with Fuel | H50: =H48*'BUDGET CALCULATOR'!C7 -> 0
B51: Total with Irrigation | G51: =G48+'BUDGET CALCULATOR'!C8 -> 100.3
A53: Total Establishment Cost | C53: =G51+H50+I48+K49 -> 108.8
A55: Annual Interest (Ammortized over 10 Years) | C55: =((C53*('BUDGET CALCULATOR'!C6)))/((1-(1+('BUDGET CALCULATOR'!C6))^-10)) -> 
A57: TOTAL ESTABLISHMENT COST: | C57: =SUM(C53:C55) -> 
A60: Annual Totals | G60: =SUM(G21:G30) -> 0 | H60: =SUM(H15:H30) -> 10.07301587 | I60: =SUM(I15:I30) -> 20.61 | J60: =SUM(J15:J30) -> 1.491857988 | K60: =SUM(K15:K30) -> 1.790229586
B61: Total With Labor | K61: =K60*'BUDGET CALCULATOR'!C5 -> 0
B62: Total with Fuel | H62: =H60*'BUDGET CALCULATOR'!C7 -> 0
B63: Total with Irrigation | G63: =G60+'BUDGET CALCULATOR'!C8 -> 0
A65: Total Annual Cost | C65: =G63+H62+I60+K61 -> 20.61
A67: Total Interest (6 month loan) | C67: =((C65*('BUDGET CALCULATOR'!C6/12)))/((1-((1+('BUDGET CALCULATOR'!C6/12))^-6)))*0.5 -> 
A69: TOTAL ANNUAL COST | C69: =SUM(C65:C67) -> 
A71: TOTAL PER ACRE COST (Efficient Producer) | C71: =C69+C55 -> 

Sheet Introduced Mix H Input-1 cut (hidden)
A1: Introduced Mix | B1: High Input Low Yield
B2: Total Yield (in tons) | C2: ='BUDGET CALCULATOR'!F17 -> 0
B3: N Per Cutting | C3: 120
A4: Establishment
C5: Operation | D5: Equipment | E5: Additional Material Needed | F5: Amount (Unit)/Price | G5: Total Price | H5: MSBG Fuel (in gallons) | I5: MSBG Maintenance Cost | J5: MSBG Labor Hours | K5: MSBG Labor with 1.2 multiplier
A6: Producer
C7: Plowing (FROM UNIVERSITY OF MINNESOTA EXTENSION, NOT MSGB) | D7: 4 bottom moldboard plow | H7: 1.29 | I7: =1.86+2.04 -> 3.9 | J7: =1/4.17 -> 0.2398081535 | K7: =J7*1.2 -> 0.2877697842
C8: Roller Harrow | D8: 15 foot cultipacker/rollerharrow | H8: =2.01/2.52 -> 0.7976190476 | I8: 0.41 | J8: 0.119 | K8: =J8*1.2 -> 0.1428
C9: Fertilizer Application | D9: Tractor pull cart with 40 foot swath | H9: =2.21/2.52 -> 0.876984127 | I9: 1.22 | J9: 0.138 | K9: 0.1656
E10: 200 pounds 18-46-0 (DAP) | F10: =703/2000 -> 0.3515 | G10: =F10*200 -> 70.3
C11: Planting | D11: 12-15 foot drill | H11: =2.45/2.52 -> 0.9722222222 | I11: 1.68 | J11: 0.139 | K11: 0.1668
E12: 20 pounds seed (7 Meadow Brome-Cache, 4 Tall Fescue-Fawn, 4 Orchardgrass, 4 Alfala) | F12: 1.5 | G12: =F12*20 -> 30
A15: Irrigation | C15: Land Planing | D15: 12 foot land plane | H15: =3.74/2.52 -> 1.484126984 | I15: 1.29 | J15: 0.152 | K15: 0.1824
A18: Yearly
C19: Operation | D19: Equipment | E19: Material Needed | F19: Amount (Unit)/Price | G19: Total Price
C21: Fertilizer Application | D21: Tractor pull cart with 40 foot swath | H21: =2.21/2.52 -> 0.876984127 | I21: 1.22 | J21: 0.138 | K21: =J21*1.2 -> 0.1656
E22: 120 pounds Nitrogen Urea | F22: =536/2000 -> 0.268 | G22: =F22*'BUDGET CALCULATOR'!F20 -> 0
C23: Swathing | D23: 14 foot swather | H23: =2.9/2.52 -> 1.150793651 | I23: 2.67 | J23: 0.172 | K23: =J23*1.2 -> 0.2064
C24: Baling | D24: Bailer | H24: =3.57/2.52 -> 1.416666667 | I24: 3.36 | J24: 0.212 | K24: =J24*1.2 -> 0.2544
C25: Hauling (FROM UNIVERSITY OF MINNESOTA EXTENSION, NOT MSGB) | D25: Baling Wagon | H25: 0.85 | I25: =1.05+0.75+0.61 -> 2.41 | J25: =1/6.76 -> 0.1479289941 | K25: =J25*1.2 -> 0.1775147929
E26: Twine/ ton | F26: 0.76 | G26: =F26*$C$2 -> 0
A48: Establishment Totals | G48: =SUM(G10:G12) -> 100.3 | H48: =SUM(H7:H11)+H15 -> 5.420952381 | I48: =SUM(I7:I11)+I15 -> 8.5 | J48: =SUM(J7:J11)+J15 -> 0.7878081535 | K48: =SUM(K7:K11)+K15 -> 0.9453697842
B49: Total With Labor | K49: =K48*'BUDGET CALCULATOR'!C5 -> 0
B50: Total with Fuel | H50: =H48*'BUDGET CALCULATOR'!C7 -> 0
B51: Total with Irrigation | G51: =G48+'BUDGET CALCULATOR'!C8 -> 100.3
A53: Total Establishment Cost | C53: =G51+H50+I48+K49 -> 108.8
A55: Annual Interest (Ammortized over 10 Years) | C55: =((C53*('BUDGET CALCULATOR'!C6)))/((1-(1+('BUDGET CALCULATOR'!C6))^-10)) -> 
A57: TOTAL ESTABLISHMENT COST: | C57: =SUM(C53:C55) -> 
A60: Annual Totals | G60: =SUM(G21:G30) -> 0 | H60: =SUM(H15:H30) -> 5.778571429 | I60: =SUM(I15:I30) -> 10.95 | J60: =SUM(J15:J30) -> 0.8219289941 | K60: =SUM(K15:K30) -> 0.9863147929
B61: Total With Labor | K61: =K60*'BUDGET CALCULATOR'!C5 -> 0
B62: Total with Fuel | H62: =H60*'BUDGET CALCULATOR'!C7 -> 0
B63: Total with Irrigation | G63: =G60+'BUDGET CALCULATOR'!C8 -> 0
A65: Total Annual Cost | C65: =G63+H62+I60+K61 -> 10.95
A67: Total Interest (6 month loan) | C67: =((C65*('BUDGET CALCULATOR'!C6/12)))/((1-((1+('BUDGET CALCULATOR'!C6/12))^-6)))*0.5 -> 
A69: TOTAL ANNUAL COST | C69: =SUM(C65:C67) -> 
A71: TOTAL PER ACRE COST (Efficient Producer) | C71: =C69+C55 -> 

Sheet Intoduced Mix H Input-2 cut (hidden)
A1: Introduced Mix | B1: High Input High Yield
B2: Total Yield (in tons) | C2: ='BUDGET CALCULATOR'!F17 -> 0
B3: N Per Cutting | C3: 60
A4: Establishment
C5: Operation | D5: Equipment | E5: Additional Material Needed | F5: Amount (Unit)/Price | G5: Total Price | H5: MSBG Fuel (in gallons) | I5: MSBG Maintenance Cost | J5: MSBG Labor Hours | K5: MSBG Labor with 1.2 multiplier
A6: Producer
C7: Plowing (FROM UNIVERSITY OF MINNESOTA EXTENSION, NOT MSGB) | D7: 4 bottom moldboard plow | H7: 1.29 | I7: =1.86+2.04 -> 3.9 | J7: =1/4.17 -> 0.2398081535 | K7: =J7*1.2 -> 0.2877697842
C8: Roller Harrow | D8: 15 foot cultipacker/rollerharrow | H8: =2.01/2.52 -> 0.7976190476 | I8: 0.41 | J8: 0.119 | K8: =J8*1.2 -> 0.1428
C9: Fertilizer Application | D9: Tractor pull cart with 40 foot swath | H9: =2.21/2.52 -> 0.876984127 | I9: 1.22 | J9: 0.138 | K9: 0.1656
E10: 200 pounds 18-46-0 (DAP) | F10: =703/2000 -> 0.3515 | G10: =F10*200 -> 70.3
C11: Planting | D11: 12-15 foot drill | H11: =2.45/2.52 -> 0.9722222222 | I11: 1.68 | J11: 0.139 | K11: 0.1668
E12: 20 pounds seed (7 Meadow Brome-Cache, 4 Tall Fescue-Fawn, 4 Orchardgrass, 4 Alfala) | F12: 1.5 | G12: =F12*20 -> 30
A15: Irrigation | C15: Land Planing | D15: 12 foot land plane | H15: =3.74/2.52 -> 1.484126984 | I15: 1.29 | J15: 0.152 | K15: 0.1824
A18: Yearly
C19: Operation | D19: Equipment | E19: Material Needed | F19: Amount (Unit)/Price | G19: Total Price
C21: Fertilizer Application | D21: Tractor pull cart with 40 foot swath | H21: =2.21/2.52 -> 0.876984127 | I21: 1.22 | J21: 0.138 | K21: =J21*1.2 -> 0.1656
E22: 60 pounds Nitrogen Urea | F22: =536/2000 -> 0.268 | G22: =F22*'BUDGET CALCULATOR'!F20 -> 0
C23: Swathing | D23: 14 foot swather | H23: =2.9/2.52 -> 1.150793651 | I23: 2.67 | J23: 0.172 | K23: =J23*1.2 -> 0.2064
C24: Baling | D24: Bailer | H24: =3.57/2.52 -> 1.416666667 | I24: 3.36 | J24: 0.212 | K24: 0.2544
C25: Hauling (FROM UNIVERSITY OF MINNESOTA EXTENSION, NOT MSGB) | D25: Baling Wagon | H25: 0.85 | I25: =1.05+0.75+0.61 -> 2.41 | J25: =1/6.76 -> 0.1479289941 | K25: =J25*1.2 -> 0.1775147929
C26: Fertilizer Application | D26: Tractor pull cart with 40 foot swath | H26: =2.21/2.52 -> 0.876984127 | I26: 1.22 | J26: 0.138 | K26: 0.1656
E27: 60 pounds Nitrogen Urea | F27: =536/2000 -> 0.268 | G27: =F27*'BUDGET CALCULATOR'!F20 -> 0
C28: Swathing | D28: 14 foot swather | H28: =2.9/2.52 -> 1.150793651 | I28: 2.67 | J28: 0.172 | K28: 0.2064
C29: Baling | D29: Bailer | H29: =3.57/2.52 -> 1.416666667 | I29: 3.36 | J29: 0.212 | K29: 0.2544
C30: Hauling (FROM UNIVERSITY OF MINNESOTA EXTENSION, NOT MSGB) | D30: Baling Wagon | H30: 0.85 | I30: =1.05+0.75+0.61 -> 2.41 | J30: =1/6.76 -> 0.1479289941 | K30: =J30*1.2 -> 0.1775147929
E31: Twine/ ton | F31: 0.76 | G31: =F31*C2 -> 0
A48: Establishment Totals | G48: =SUM(G10:G12) -> 100.3 | H48: =SUM(H7:H11)+H15 -> 5.420952381 | I48: =SUM(I7:I11)+I15 -> 8.5 | J48: =SUM(J7:J11)+J15 -> 0.7878081535 | K48: =SUM(K7:K11)+K15 -> 0.9453697842
B49: Total With Labor | K49: =K48*'BUDGET CALCULATOR'!C5 -> 0
B50: Total with Fuel | H50: =H48*'BUDGET CALCULATOR'!C7 -> 0
B51: Total with Irrigation | G51: =G48+'BUDGET CALCULATOR'!C8 -> 100.3
A53: Total Establishment Cost | C53: =G51+H50+I48+K49 -> 108.8
A55: Annual Interest (Ammortized over 10 Years) | C55: =((C53*('BUDGET CALCULATOR'!C6)))/((1-(1+('BUDGET CALCULATOR'!C6))^-10)) -> 
A57: TOTAL ESTABLISHMENT COST: | C57: =SUM(C53:C55) -> 
A60: Annual Totals | G60: =SUM(G21:G30) -> 0 | H60: =SUM(H15:H30) -> 10.07301587 | I60: =SUM(I15:I30) -> 20.61 | J60: =SUM(J15:J30) -> 1.491857988 | K60: =SUM(K15:K30) -> 1.790229586
B61: Total With Labor | K61: =K60*'BUDGET CALCULATOR'!C5 -> 0
B62: Total with Fuel | H62: =H60*'BUDGET CALCULATOR'!C7 -> 0
B63: Total with Irrigation | G63: =G60+'BUDGET CALCULATOR'!C8 -> 0
A65: Total Annual Cost | C65: =G63+H62+I60+K61 -> 20.61
A67: Total Interest (6 month loan) | C67: =((C65*('BUDGET CALCULATOR'!C6/12)))/((1-((1+('BUDGET CALCULATOR'!C6/12))^-6)))*0.5 -> 
A69: TOTAL ANNUAL COST | C69: =SUM(C65:C67) -> 
A71: TOTAL PER ACRE COST (Efficient Producer) | C71: =C69+C55 -> 

Sheet Intoduced Mix H Input-3 cut (hidden)
A1: Introduced Mix | B1: High Input High Yield
B2: Total Yield (in tons) | C2: ='BUDGET CALCULATOR'!F17 -> 0
B3: N Per Cutting | C3: 60
A4: Establishment
C5: Operation | D5: Equipment | E5: Additional Material Needed | F5: Amount (Unit)/Price | G5: Total Price | H5: MSBG Fuel (in gallons) | I5: MSBG Maintenance Cost | J5: MSBG Labor Hours | K5: MSBG Labor with 1.2 multiplier
A6: Producer
C7: Plowing (FROM UNIVERSITY OF MINNESOTA EXTENSION, NOT MSGB) | D7: 4 bottom moldboard plow | H7: 1.29 | I7: =1.86+2.04 -> 3.9 | J7: =1/4.17 -> 0.2398081535 | K7: =J7*1.2 -> 0.2877697842
C8: Roller Harrow | D8: 15 foot cultipacker/rollerharrow | H8: =2.01/2.52 -> 0.7976190476 | I8: 0.41 | J8: 0.119 | K8: =J8*1.2 -> 0.1428
C9: Fertilizer Application | D9: Tractor pull cart with 40 foot swath | H9: =2.21/2.52 -> 0.876984127 | I9: 1.22 | J9: 0.138 | K9: 0.1656
E10: 200 pounds 18-46-0 (DAP) | F10: =703/2000 -> 0.3515 | G10: =F10*200 -> 70.3
C11: Planting | D11: 12-15 foot drill | H11: =2.45/2.52 -> 0.9722222222 | I11: 1.68 | J11: 0.139 | K11: 0.1668
E12: 20 pounds seed (7 Meadow Brome-Cache, 4 Tall Fescue-Fawn, 4 Orchardgrass, 4 Alfala) | F12: 1.5 | G12: =F12*20 -> 30
A15: Irrigation | C15: Land Planing | D15: 12 foot land plane | H15: =3.74/2.52 -> 1.484126984 | I15: 1.29 | J15: 0.152 | K15: 0.1824
A18: Yearly
C19: Operation | D19: Equipment | E19: Material Needed | F19: Amount (Unit)/Price | G19: Total Price
C21: Fertilizer Application | D21: Tractor pull cart with 40 foot swath | H21: =2.21/2.52 -> 0.876984127 | I21: 1.22 | J21: 0.138 | K21: =J21*1.2 -> 0.1656
E22: 60 pounds Nitrogen Urea | F22: =536/2000 -> 0.268 | G22: =F22*'BUDGET CALCULATOR'!F20 -> 0
C23: Swathing | D23: 14 foot swather | H23: =2.9/2.52 -> 1.150793651 | I23: 2.67 | J23: 0.172 | K23: =J23*1.2 -> 0.2064
C24: Baling | D24: Bailer | H24: =3.57/2.52 -> 1.416666667 | I24: 3.36 | J24: 0.212 | K24: 0.2544
C25: Hauling (FROM UNIVERSITY OF MINNESOTA EXTENSION, NOT MSGB) | D25: Baling Wagon | H25: 0.85 | I25: =1.05+0.75+0.61 -> 2.41 | J25: =1/6.76 -> 0.1479289941 | K25: =J25*1.2 -> 0.1775147929
C26: Fertilizer Application | D26: Tractor pull cart with 40 foot swath | H26: =2.21/2.52 -> 0.876984127 | I26: 1.22 | J26: 0.138 | K26: 0.1656
E27: 60 pounds Nitrogen Urea | F27: =536/2000 -> 0.268 | G27: =F27*'BUDGET CALCULATOR'!F20 -> 0
C28: Swathing | D28: 14 foot swather | H28: =2.9/2.52 -> 1.150793651 | I28: 2.67 | J28: 0.172 | K28: 0.2064
C29: Baling | D29: Bailer | H29: =3.57/2.52 -> 1.416666667 | I29: 3.36 | J29: 0.212 | K29: 0.2544
C30: Hauling (FROM UNIVERSITY OF MINNESOTA EXTENSION, NOT MSGB) | D30: Baling Wagon | H30: 0.85 | I30: =1.05+0.75+0.61 -> 2.41 | J30: =1/6.76 -> 0.1479289941 | K30: =J30*1.2 -> 0.1775147929
E31: Twine/ ton | F31: 0.76 | G31: =F31*C2 -> 0
C32: Fertilizer Application | D32: Tractor pull cart with 40 foot swath | H32: =2.21/2.52 -> 0.876984127 | I32: 1.22 | J32: 0.138 | K32: =J32*1.2 -> 0.1656
E33: 60 pounds Nitrogen Urea | F33: =536/2000 -> 0.268 | G33: =F33*'BUDGET CALCULATOR'!F20 -> 0
C34: Swathing | D34: 14 foot swather | H34: =2.9/2.52 -> 1.150793651 | I34: 2.67 | J34: 0.172 | K34: =J34*1.2 -> 0.2064
C35: Baling | D35: Bailer | H35: =3.57/2.52 -> 1.416666667 | I35: 3.36 | J35: 0.212 | K35: 0.2544
C36: Hauling (FROM UNIVERSITY OF MINNESOTA EXTENSION, NOT MSGB) | D36: Baling Wagon | H36: 0.85 | I36: =1.05+0.75+0.61 -> 2.41 | J36: =1/6.76 -> 0.1479289941 | K36: =J36*1.2 -> 0.1775147929
E37: Twine/ ton | F37: 0.76 | G37: =F37*C2 -> 0
A48: Establishment Totals | G48: =SUM(G10:G12) -> 100.3 | H48: =SUM(H7:H11)+H15 -> 5.420952381 | I48: =SUM(I7:I11)+I15 -> 8.5 | J48: =SUM(J7:J11)+J15 -> 0.7878081535 | K48: =SUM(K7:K11)+K15 -> 0.9453697842
B49: Total With Labor | K49: =K48*'BUDGET CALCULATOR'!C5 -> 0
B50: Total with Fuel | H50: =H48*'BUDGET CALCULATOR'!C7 -> 0
B51: Total with Irrigation | G51: =G48+'BUDGET CALCULATOR'!C8 -> 100.3
A53: Total Establishment Cost | C53: =G51+H50+I48+K49 -> 108.8
A55: Annual Interest (Ammortized over 10 Years) | C55: =((C53*('BUDGET CALCULATOR'!C6)))/((1-(1+('BUDGET CALCULATOR'!C6))^-10)) -> 
A57: TOTAL ESTABLISHMENT COST: | C57: =SUM(C53:C55) -> 
A60: Annual Totals | G60: =SUM(G21:G37) -> 0 | H60: =SUM(H15:H37) -> 14.36746032 | I60: =SUM(I15:I37) -> 30.27 | J60: =SUM(J15:J37) -> 2.161786982 | K60: =SUM(K15:K37) -> 2.594144379
B61: Total With Labor | K61: =K60*'BUDGET CALCULATOR'!C5 -> 0
B62: Total with Fuel | H62: =H60*'BUDGET CALCULATOR'!C7 -> 0
B63: Total with Irrigation | G63: =G60+'BUDGET CALCULATOR'!C8 -> 0
A65: Total Annual Cost | C65: =G63+H62+I60+K61 -> 30.27
A67: Total Interest (6 month loan) | C67: =((C65*('BUDGET CALCULATOR'!C6/12)))/((1-((1+('BUDGET CALCULATOR'!C6/12))^-6)))*0.5 -> 
A69: TOTAL ANNUAL COST | C69: =SUM(C65:C67) -> 
A71: TOTAL PER ACRE COST (Efficient Producer) | C71: =C69+C55 -> 

Sheet Native Mix L Input-1 cut (hidden)
A1: Native Mix | B1: Low Input Low Yield
B2: Total Yield (in tons) | C2: ='BUDGET CALCULATOR'!C17 -> 0
B3: N Per Cutting | C3: 60
A4: Establishment
C5: Operation | D5: Equipment | E5: Additional Material Needed | F5: Amount (Unit)/Price | G5: Total Price | H5: MSBG Fuel (in gallons) | I5: MSBG Maintenance Cost | J5: MSBG Labor Hours | K5: MSBG Labor with 1.2 multiplier
C7: Plowing (FROM UNIVERSITY OF MINNESOTA EXTENSION, NOT MSGB) | D7: 4 bottom moldboard plow | H7: 1.29 | I7: =1.86+2.04 -> 3.9 | J7: =1/4.17 -> 0.2398081535 | K7: =J7*1.2 -> 0.2877697842
C8: Roller Harrow | D8: 15 foot cultipacker/rollerharrow | H8: =2.01/2.52 -> 0.7976190476 | I8: 0.41 | J8: 0.119 | K8: =J8*1.2 -> 0.1428
C9: Fertilizer Application | D9: Tractor pull cart with 40 foot swath | H9: =2.21/2.52 -> 0.876984127 | I9: 1.22 | J9: 0.138 | K9: 0.1656
E10: 200 pounds 18-46-0 (DAP) | F10: =703/2000 -> 0.3515 | G10: =F10*200 -> 70.3
C11: Planting | D11: 12-15 foot drill | H11: =2.45/2.52 -> 0.9722222222 | I11: 1.68 | J11: 0.139 | K11: 0.1668
E12: 16 pounds seed (7 Great Basin Wildrye, 3 Slender Wheatgrass, 3 Bluebunch Wheatgrass, 3 Western Wheatgrass) | F12: 3.23 | G12: =F12*16 -> 51.68
A15: Irrigation | C15: Land Planing | D15: 12 foot land plane | H15: =3.74/2.52 -> 1.484126984 | I15: 1.29 | J15: 0.152 | K15: 0.1824
A18: Yearly
C19: Operation | D19: Equipment | E19: Material Needed | F19: Amount (Unit)/Price | G19: Total Price
C21: Fertilizer Application | D21: Tractor pull cart with 40 foot swath | H21: =2.21/2.52 -> 0.876984127 | I21: 1.22 | J21: 0.138 | K21: =J21*1.2 -> 0.1656
E22: 60 pounds Nitrogen Urea | F22: =536/2000 -> 0.268 | G22: =F22*'BUDGET CALCULATOR'!C20 -> 0
C23: Swathing | D23: 14 foot swather | H23: =2.9/2.52 -> 1.150793651 | I23: 2.67 | J23: 0.172 | K23: =J23*1.2 -> 0.2064
C24: Baling | D24: Bailer | H24: =3.57/2.52 -> 1.416666667 | I24: 3.36 | J24: 0.212 | K24: 0.2544
C25: Hauling (FROM UNIVERSITY OF MINNESOTA EXTENSION, NOT MSGB) | D25: Baling Wagon | H25: 0.85 | I25: =1.05+0.75+0.61 -> 2.41 | J25: =1/6.76 -> 0.1479289941 | K25: =J25*1.2 -> 0.1775147929
E26: Twine/ ton | F26: 0.76 | G26: =C2*F26 -> 0
A48: Establishment Totals | G48: =SUM(G10:G12) -> 121.98 | H48: =SUM(H7:H11)+H15 -> 5.420952381 | I48: =SUM(I7:I11)+I15 -> 8.5 | J48: =SUM(J7:J11)+J15 -> 0.7878081535 | K48: =SUM(K7:K11)+K15 -> 0.9453697842
B49: Total With Labor | K49: =K48*'BUDGET CALCULATOR'!C5 -> 0
B50: Total with Fuel | H50: =H48*'BUDGET CALCULATOR'!C7 -> 0
B51: Total with Irrigation | G51: =G48+'BUDGET CALCULATOR'!C8 -> 121.98
A53: Total Establishment Cost | C53: =G51+H50+I48+K49 -> 130.48
A55: Annual Interest (Ammortized over 10 Years) | C55: =((C53*('BUDGET CALCULATOR'!C6)))/((1-(1+('BUDGET CALCULATOR'!C6))^-10)) -> 
A57: TOTAL ESTABLISHMENT COST: | C57: =SUM(C53:C55) -> 
A59: Annual Totals | G59: =SUM(G21:G30) -> 0 | H59: =SUM(H15:H30) -> 5.778571429 | I59: =SUM(I15:I30) -> 10.95 | J59: =SUM(J15:J30) -> 0.8219289941 | K59: =SUM(K15:K30) -> 0.9863147929
B60: Total With Labor | K60: =K59*'BUDGET CALCULATOR'!C5 -> 0
B61: Total with Fuel | H61: =H59*'BUDGET CALCULATOR'!C7 -> 0
B62: Total with Irrigation | G62: =G59+'BUDGET CALCULATOR'!C8 -> 0
A64: Total Annual Cost | C64: =G62+H61+I59+K60 -> 10.95
A66: Total Interest (6 month loan) | C66: =((C64*('BUDGET CALCULATOR'!C6/12)))/((1-((1+('BUDGET CALCULATOR'!C6/12))^-6)))*0.5 -> 
A68: TOTAL ANNUAL COST | C68: =SUM(C64:C66) -> 
A70: TOTAL PER ACRE COST (Efficient Producer) | C70: =C68+C55 -> 

Sheet Native Mix H Input-1 cut (hidden)
A1: Native Mix | B1: High Input Low Yield
B2: Total Yield (in tons) | C2: ='BUDGET CALCULATOR'!C17 -> 0
B3: N Per Cutting | C3: 120
A4: Establishment
C5: Operation | D5: Equipment | E5: Additional Material Needed | F5: Amount (Unit)/Price | G5: Total Price | H5: MSBG Fuel (in gallons) | I5: MSBG Maintenance Cost | J5: MSBG Labor Hours | K5: MSBG Labor with 1.2 multiplier
A6: Producer
C7: Plowing (FROM UNIVERSITY OF MINNESOTA EXTENSION, NOT MSGB) | D7: 4 bottom moldboard plow | H7: 1.29 | I7: =1.86+2.04 -> 3.9 | J7: =1/4.17 -> 0.2398081535 | K7: =J7*1.2 -> 0.2877697842
C8: Roller Harrow | D8: 15 foot cultipacker/rollerharrow | H8: =2.01/2.52 -> 0.7976190476 | I8: 0.41 | J8: 0.119 | K8: =J8*1.2 -> 0.1428
C9: Fertilizer Application | D9: Tractor pull cart with 40 foot swath | H9: =2.21/2.52 -> 0.876984127 | I9: 1.22 | J9: 0.138 | K9: 0.1656
E10: 200 pounds 18-46-0 (DAP) | F10: =703/2000 -> 0.3515 | G10: =F10*200 -> 70.3
C11: Planting | D11: 12-15 foot drill | H11: =2.45/2.52 -> 0.9722222222 | I11: 1.68 | J11: 0.139 | K11: 0.1668
E12: 16 pounds seed (7 Great Basin Wildrye, 3 Slender Wheatgrass, 3 Bluebunch Wheatgrass, 3 Western Wheatgrass) | F12: 3.23 | G12: =F12*16 -> 51.68
A15: Irrigation | C15: Land Planing | D15: 12 foot land plane | H15: =3.74/2.52 -> 1.484126984 | I15: 1.29 | J15: 0.152 | K15: 0.1824
A18: Yearly
C21: Fertilizer Application | D21: Tractor pull cart with 40 foot swath | H21: =2.21/2.52 -> 0.876984127 | I21: 1.22 | J21: 0.138 | K21: =J21*1.2 -> 0.1656
E22: 120 pounds Nitrogen Urea | F22: =536/2000 -> 0.268 | G22: =F22*'BUDGET CALCULATOR'!C20 -> 0
C23: Swathing | D23: 14 foot swather | H23: =2.9/2.52 -> 1.150793651 | I23: 2.67 | J23: 0.172 | K23: =J23*1.2 -> 0.2064
C24: Baling | D24: Bailer | H24: =3.57/2.52 -> 1.416666667 | I24: 3.36 | J24: 0.212 | K24: 0.2544
C25: Hauling (FROM UNIVERSITY OF MINNESOTA EXTENSION, NOT MSGB) | D25: Baling Wagon | H25: 0.85 | I25: =1.05+0.75+0.61 -> 2.41 | J25: =1/6.76 -> 0.1479289941 | K25: =J25*1.2 -> 0.1775147929
E26: Twine/ ton | F26: 0.76 | G26: =F26*C2 -> 0
A48: Establishment Totals | G48: =SUM(G10:G12) -> 121.98 | H48: =SUM(H7:H11)+H15 -> 5.420952381 | I48: =SUM(I7:I11)+I15 -> 8.5 | J48: =SUM(J7:J11)+J15 -> 0.7878081535 | K48: =SUM(K7:K11)+K15 -> 0.9453697842
B49: Total With Labor | K49: =K48*'BUDGET CALCULATOR'!C5 -> 0
B50: Total with Fuel | H50: =H48*'BUDGET CALCULATOR'!C7 -> 0
B51: Total with Irrigation | G51: =G48+'BUDGET CALCULATOR'!C8 -> 121.98
A53: Total Establishment Cost | C53: =G51+H50+I48+K49 -> 130.48
A55: Annual Interest (Ammortized over 10 Years) | C55: =((C53*('BUDGET CALCULATOR'!C6)))/((1-(1+('BUDGET CALCULATOR'!C6))^-10)) -> 
A57: TOTAL ESTABLISHMENT COST: | C57: =SUM(C53:C55) -> 
A60: Annual Totals | G60: =SUM(G21:G30) -> 0 | H60: =SUM(H15:H30) -> 5.778571429 | I60: =SUM(I15:I30) -> 10.95 | J60: =SUM(J15:J30) -> 0.8219289941 | K60: =SUM(K15:K30) -> 0.9863147929
B61: Total With Labor | K61: =K60*'BUDGET CALCULATOR'!C5 -> 0
B62: Total with Fuel | H62: =H60*'BUDGET CALCULATOR'!C7 -> 0
B63: Total with Irrigation | G63: =G60+'BUDGET CALCULATOR'!C8 -> 0
A65: Total Annual Cost | C65: =G63+H62+I60+K61 -> 10.95
A67: Total Interest (6 month loan) | C67: =((C65*('BUDGET CALCULATOR'!C6/12)))/((1-((1+('BUDGET CALCULATOR'!C6/12))^-6)))*0.5 -> 
A69: TOTAL ANNUAL COST | C69: =SUM(C65:C67) -> 
A71: TOTAL PER ACRE COST (Efficient Producer) | C71: =C69+C55 -> 

Sheet Native Mix H Input-2 cut (hidden)
A1: Native Mix | B1: High Input High Yield
B2: Total Yield (in tons) | C2: ='BUDGET CALCULATOR'!C17 -> 0
B3: N Per Cutting | C3: 60
A4: Establishment
C5: Operation | D5: Equipment | E5: Additional Material Needed | F5: Amount (Unit)/Price | G5: Total Price | H5: MSBG Fuel (in gallons) | I5: MSBG Maintenance Cost | J5: MSBG Labor Hours | K5: MSBG Labor with 1.2 multiplier
A6: Producer
C7: Plowing (FROM UNIVERSITY OF MINNESOTA EXTENSION, NOT MSGB) | D7: 4 bottom moldboard plow | H7: 1.29 | I7: =1.86+2.04 -> 3.9 | J7: =1/4.17 -> 0.2398081535 | K7: =J7*1.2 -> 0.2877697842
C8: Roller Harrow | D8: 15 foot cultipacker/rollerharrow | H8: =2.01/2.52 -> 0.7976190476 | I8: 0.41 | J8: 0.119 | K8: =J8*1.2 -> 0.1428
C9: Fertilizer Application | D9: Tractor pull cart with 40 foot swath | H9: =2.21/2.52 -> 0.876984127 | I9: 1.22 | J9: 0.138 | K9: 0.1656
E10: 200 pounds 18-46-0 (DAP) | F10: =703/2000 -> 0.3515 | G10: =F10*200 -> 70.3
C11: Planting | D11: 12-15 foot drill | H11: =2.45/2.52 -> 0.9722222222 | I11: 1.68 | J11: 0.139 | K11: 0.1668
E12: 16 pounds seed (7 Great Basin Wildrye, 3 Slender Wheatgrass, 3 Bluebunch Wheatgrass, 3 Western Wheatgrass) | F12: 3.23 | G12: =F12*16 -> 51.68
A15: Irrigation | C15: Land Planing | D15: 12 foot land plane | H15: =3.74/2.52 -> 1.484126984 | I15: 1.29 | J15: 0.152 | K15: 0.1824
A18: Yearly
C21: Fertilizer Application | D21: Tractor pull cart with 40 foot swath | H21: =2.21/2.52 -> 0.876984127 | I21: 1.22 | J21: 0.138 | K21: =J21*1.2 -> 0.1656
E22: 60 pounds Nitrogen Urea | F22: =536/2000 -> 0.268 | G22: =F22*'BUDGET CALCULATOR'!C20 -> 0
C23: Swathing | D23: 14 foot swather | H23: =2.9/2.52 -> 1.150793651 | I23: 2.67 | J23: 0.172 | K23: =J23*1.2 -> 0.2064
C24: Baling | D24: Bailer | H24: =3.57/2.52 -> 1.416666667 | I24: 3.36 | J24: 0.212 | K24: 0.2544
C25: Hauling (FROM UNIVERSITY OF MINNESOTA EXTENSION, NOT MSGB) | D25: Baling Wagon | H25: 0.85 | I25: =1.05+0.75+0.61 -> 2.41 | J25: =1/6.76 -> 0.1479289941 | K25: =J25*1.2 -> 0.1775147929
C26: Fertilizer Application | D26: Tractor pull cart with 40 foot swath | H26: =2.21/2.52 -> 0.876984127 | I26: 1.22 | J26: 0.138 | K26: 0.1656
E27: 60 pounds Nitrogen Urea | F27: =536/2000 -> 0.268 | G27: =F27*'BUDGET CALCULATOR'!C20 -> 0
C28: Swathing | D28: 14 foot swather | H28: =2.9/2.52 -> 1.150793651 | I28: 2.67 | J28: 0.172 | K28: 0.2064
C29: Baling | D29: Bailer | H29: =3.57/2.52 -> 1.416666667 | I29: 3.36 | J29: 0.212 | K29: 0.2544
C30: Hauling (FROM UNIVERSITY OF MINNESOTA EXTENSION, NOT MSGB) | D30: Baling Wagon | H30: 0.85 | I30: =1.05+0.75+0.61 -> 2.41 | J30: =1/6.76 -> 0.1479289941 | K30: =J30*1.2 -> 0.1775147929
E31: Twine/ ton | F31: 0.76 | G31: =F31*C2 -> 0
A48: Establishment Totals | G48: =SUM(G10:G12) -> 121.98 | H48: =SUM(H7:H11)+H15 -> 5.420952381 | I48: =SUM(I7:I11)+I15 -> 8.5 | J48: =SUM(J7:J11)+J15 -> 0.7878081535 | K48: =SUM(K7:K11)+K15 -> 0.9453697842
B49: Total With Labor | K49: =K48*'BUDGET CALCULATOR'!C5 -> 0
B50: Total with Fuel | H50: =H48*'BUDGET CALCULATOR'!C7 -> 0
B51: Total with Irrigation | G51: =G48+'BUDGET CALCULATOR'!C8 -> 121.98
A53: Total Establishment Cost | C53: =G51+H50+I48+K49 -> 130.48
A55: Annual Interest (Ammortized over 10 Years) | C55: =((C53*('BUDGET CALCULATOR'!C6)))/((1-(1+('BUDGET CALCULATOR'!C6))^-10)) -> 
A57: TOTAL ESTABLISHMENT COST: | C57: =SUM(C53:C55) -> 
A60: Annual Totals | G60: =SUM(G21:G31) -> 0 | H60: =SUM(H15:H30) -> 10.07301587 | I60: =SUM(I15:I30) -> 20.61 | J60: =SUM(J15:J30) -> 1.491857988 | K60: =SUM(K15:K30) -> 1.790229586
B61: Total With Labor | K61: =K60*'BUDGET CALCULATOR'!C5 -> 0
B62: Total with Fuel | H62: =H60*'BUDGET CALCULATOR'!C7 -> 0
B63: Total with Irrigation | G63: =G60+'BUDGET CALCULATOR'!C8 -> 0
A65: Total Annual Cost | C65: =G63+H62+I60+K61 -> 20.61
A67: Total Interest (6 month loan) | C67: =((C65*('BUDGET CALCULATOR'!C6/12)))/((1-((1+('BUDGET CALCULATOR'!C6/12))^-6)))*0.5 -> 
A69: TOTAL ANNUAL COST | C69: =SUM(C65:C67) -> 
A71: TOTAL PER ACRE COST | C71: =C69+C55 -> 

Sheet Native Mix H Input-3 cut (hidden)
A1: Native Mix | B1: High Input High Yield
B2: Total Yield (in tons) | C2: ='BUDGET CALCULATOR'!C17 -> 0
B3: N Per Cutting | C3: 60
A4: Establishment
C5: Operation | D5: Equipment | E5: Additional Material Needed | F5: Amount (Unit)/Price | G5: Total Price | H5: MSBG Fuel (in gallons) | I5: MSBG Maintenance Cost | J5: MSBG Labor Hours | K5: MSBG Labor with 1.2 multiplier
A6: Producer
C7: Plowing (FROM UNIVERSITY OF MINNESOTA EXTENSION, NOT MSGB) | D7: 4 bottom moldboard plow | H7: 1.29 | I7: =1.86+2.04 -> 3.9 | J7: =1/4.17 -> 0.2398081535 | K7: =J7*1.2 -> 0.2877697842
C8: Roller Harrow | D8: 15 foot cultipacker/rollerharrow | H8: =2.01/2.52 -> 0.7976190476 | I8: 0.41 | J8: 0.119 | K8: =J8*1.2 -> 0.1428
C9: Fertilizer Application | D9: Tractor pull cart with 40 foot swath | H9: =2.21/2.52 -> 0.876984127 | I9: 1.22 | J9: 0.138 | K9: 0.1656
E10: 200 pounds 18-46-0 (DAP) | F10: =703/2000 -> 0.3515 | G10: =F10*200 -> 70.3
C11: Planting | D11: 12-15 foot drill | H11: =2.45/2.52 -> 0.9722222222 | I11: 1.68 | J11: 0.139 | K11: 0.1668
E12: 16 pounds seed (7 Great Basin Wildrye, 3 Slender Wheatgrass, 3 Bluebunch Wheatgrass, 3 Western Wheatgrass) | F12: 3.23 | G12: =F12*16 -> 51.68
A15: Irrigation | C15: Land Planing | D15: 12 foot land plane | H15: =3.74/2.52 -> 1.484126984 | I15: 1.29 | J15: 0.152 | K15: 0.1824
A18: Yearly
C21: Fertilizer Application | D21: Tractor pull cart with 40 foot swath | H21: =2.21/2.52 -> 0.876984127 | I21: 1.22 | J21: 0.138 | K21: =J21*1.2 -> 0.1656
E22: 60 pounds Nitrogen Urea | F22: =536/2000 -> 0.268 | G22: =F22*'BUDGET CALCULATOR'!C20 -> 0
C23: Swathing | D23: 14 foot swather | H23: =2.9/2.52 -> 1.150793651 | I23: 2.67 | J23: 0.172 | K23: =J23*1.2 -> 0.2064
C24: Baling | D24: Bailer | H24: =3.57/2.52 -> 1.416666667 | I24: 3.36 | J24: 0.212 | K24: 0.2544
C25: Hauling (FROM UNIVERSITY OF MINNESOTA EXTENSION, NOT MSGB) | D25: Baling Wagon | H25: 0.85 | I25: =1.05+0.75+0.61 -> 2.41 | J25: =1/6.76 -> 0.1479289941 | K25: =J25*1.2 -> 0.1775147929
C26: Fertilizer Application | D26: Tractor pull cart with 40 foot swath | H26: =2.21/2.52 -> 0.876984127 | I26: 1.22 | J26: 0.138 | K26: 0.1656
E27: 60 pounds Nitrogen Urea | F27: =536/2000 -> 0.268 | G27: =F27*'BUDGET CALCULATOR'!C20 -> 0
C28: Swathing | D28: 14 foot swather | H28: =2.9/2.52 -> 1.150793651 | I28: 2.67 | J28: 0.172 | K28: 0.2064
C29: Baling | D29: Bailer | H29: =3.57/2.52 -> 1.416666667 | I29: 3.36 | J29: 0.212 | K29: 0.2544
C30: Hauling (FROM UNIVERSITY OF MINNESOTA EXTENSION, NOT MSGB) | D30: Baling Wagon | H30: 0.85 | I30: =1.05+0.75+0.61 -> 2.41 | J30: =1/6.76 -> 0.1479289941 | K30: =J30*1.2 -> 0.1775147929
E31: Twine/ ton | F31: 0.76 | G31: =F31*C2 -> 0
C32: Fertilizer Application | D32: Tractor pull cart with 40 foot swath | H32: =2.21/2.52 -> 0.876984127 | I32: 1.22 | J32: 0.138 | K32: =J32*1.2 -> 0.1656
E33: 60 pounds Nitrogen Urea | F33: =536/2000 -> 0.268 | G33: =F33*'BUDGET CALCULATOR'!C20 -> 0
C34: Swathing | D34: 14 foot swather | H34: =2.9/2.52 -> 1.150793651 | I34: 2.67 | J34: 0.172 | K34: =J34*1.2 -> 0.2064
C35: Baling | D35: Bailer | H35: =3.57/2.52 -> 1.416666667 | I35: 3.36 | J35: 0.212 | K35: 0.2544
C36: Hauling (FROM UNIVERSITY OF MINNESOTA EXTENSION, NOT MSGB) | D36: Baling Wagon | H36: 0.85 | I36: =1.05+0.75+0.61 -> 2.41 | J36: =1/6.76 -> 0.1479289941 | K36: =J36*1.2 -> 0.1775147929
E37: Twine/ ton | F37: 0.76 | G37: =F37*C2 -> 0
A48: Establishment Totals | G48: =SUM(G10:G12) -> 121.98 | H48: =SUM(H7:H11)+H15 -> 5.420952381 | I48: =SUM(I7:I11)+I15 -> 8.5 | J48: =SUM(J7:J11)+J15 -> 0.7878081535 | K48: =SUM(K7:K11)+K15 -> 0.9453697842
B49: Total With Labor | K49: =K48*'BUDGET CALCULATOR'!C5 -> 0
B50: Total with Fuel | H50: =H48*'BUDGET CALCULATOR'!C7 -> 0
B51: Total with Irrigation | G51: =G48+'BUDGET CALCULATOR'!C8 -> 121.98
A53: Total Establishment Cost | C53: =G51+H50+I48+K49 -> 130.48
A55: Annual Interest (Ammortized over 10 Years) | C55: =((C53*('BUDGET CALCULATOR'!C6)))/((1-(1+('BUDGET CALCULATOR'!C6))^-10)) -> 
A57: TOTAL ESTABLISHMENT COST: | C57: =SUM(C53:C55) -> 
A60: Annual Totals | G60: =SUM(G21:G37) -> 0 | H60: =SUM(H15:H37) -> 14.36746032 | I60: =SUM(I15:I37) -> 30.27 | J60: =SUM(J15:J37) -> 2.161786982 | K60: =SUM(K15:K37) -> 2.594144379
B61: Total With Labor | K61: =K60*'BUDGET CALCULATOR'!C5 -> 0
B62: Total with Fuel | H62: =H60*'BUDGET CALCULATOR'!C7 -> 0
B63: Total with Irrigation | G63: =G60+'BUDGET CALCULATOR'!C8 -> 0
A65: Total Annual Cost | C65: =G63+H62+I60+K61 -> 30.27
A67: Total Interest (6 month loan) | C67: =((C65*('BUDGET CALCULATOR'!C6/12)))/((1-((1+('BUDGET CALCULATOR'!C6/12))^-6)))*0.5 -> 
A69: TOTAL ANNUAL COST | C69: =SUM(C65:C67) -> 
A71: TOTAL PER ACRE COST | C71: =C69+C55 -> 

Sheet Native Mix L Input-2 cut (hidden)
A1: Native Mix | B1: Low Input High Yield
B2: Total Yield (in tons) | C2: ='BUDGET CALCULATOR'!C17 -> 0
B3: N Per Cutting | C3: 30
A4: Establishment
C5: Operation | D5: Equipment | E5: Additional Material Needed | F5: Amount (Unit)/Price | G5: Total Price | H5: MSBG Fuel (in gallons) | I5: MSBG Maintenance Cost | J5: MSBG Labor Hours | K5: MSBG Labor with 1.2 multiplier
A6: Producer
C7: Plowing (FROM UNIVERSITY OF MINNESOTA EXTENSION, NOT MSGB) | D7: 4 bottom moldboard plow | H7: 1.29 | I7: =1.86+2.04 -> 3.9 | J7: =1/4.17 -> 0.2398081535 | K7: =J7*1.2 -> 0.2877697842
C8: Roller Harrow | D8: 15 foot cultipacker/rollerharrow | H8: =2.01/2.52 -> 0.7976190476 | I8: 0.41 | J8: 0.119 | K8: =J8*1.2 -> 0.1428
C9: Fertilizer Application | D9: Tractor pull cart with 40 foot swath | H9: =2.21/2.52 -> 0.876984127 | I9: 1.22 | J9: 0.138 | K9: 0.1656
E10: 200 pounds 18-46-0 (DAP) | F10: =703/2000 -> 0.3515 | G10: =F10*200 -> 70.3
C11: Planting | D11: 12-15 foot drill | H11: =2.45/2.52 -> 0.9722222222 | I11: 1.68 | J11: 0.139 | K11: 0.1668
E12: 16 pounds seed (7 Great Basin Wildrye, 3 Slender Wheatgrass, 3 Bluebunch Wheatgrass, 3 Western Wheatgrass) | F12: 3.23 | G12: =F12*16 -> 51.68
A15: Irrigation | C15: Land Planing | D15: 12 foot land plane | H15: =3.74/2.52 -> 1.484126984 | I15: 1.29 | J15: 0.152 | K15: 0.1824
A18: Yearly
C21: Fertilizer Application | D21: Tractor pull cart with 40 foot swath | H21: =2.21/2.52 -> 0.876984127 | I21: 1.22 | J21: 0.138 | K21: =J21*1.2 -> 0.1656
E22: 30 pounds Nitrogen Urea | F22: =536/2000 -> 0.268 | G22: =F22*'BUDGET CALCULATOR'!C20 -> 0
C23: Swathing | D23: 14 foot swather | H23: =2.9/2.52 -> 1.150793651 | I23: 2.67 | J23: 0.172 | K23: =J23*1.2 -> 0.2064
C24: Baling | D24: Bailer | H24: =3.57/2.52 -> 1.416666667 | I24: 3.36 | J24: 0.212 | K24: 0.2544
C25: Hauling (FROM UNIVERSITY OF MINNESOTA EXTENSION, NOT MSGB) | D25: Baling Wagon | H25: 0.85 | I25: =1.05+0.75+0.61 -> 2.41 | J25: =1/6.76 -> 0.1479289941 | K25: =J25*1.2 -> 0.1775147929
C26: Fertilizer Application | D26: Tractor pull cart with 40 foot swath | H26: =2.21/2.52 -> 0.876984127 | I26: 1.22 | J26: 0.138 | K26: 0.1656
E27: 30 pounds Nitrogen Urea | F27: =536/2000 -> 0.268 | G27: =F27*'BUDGET CALCULATOR'!C20 -> 0
C28: Swathing | D28: 14 foot swather | H28: =2.9/2.52 -> 1.150793651 | I28: 2.67 | J28: 0.172 | K28: 0.2064
C29: Baling | D29: Bailer | H29: =3.57/2.52 -> 1.416666667 | I29: 3.36 | J29: 0.212 | K29: 0.2544
C30: Hauling (FROM UNIVERSITY OF MINNESOTA EXTENSION, NOT MSGB, TWINE FROM UNIVERSITY OF NEBRASKA EXTENSION) | D30: Baling Wagon | H30: 0.85 | I30: =1.05+0.75+0.61 -> 2.41 | J30: =1/6.76 -> 0.1479289941 | K30: =J30*1.2 -> 0.1775147929
E31: Twine/ ton | F31: 0.76 | G31: =C2*F31 -> 0
A48: Establishment Totals | G48: =SUM(G10:G12) -> 121.98 | H48: =SUM(H7:H11)+H15 -> 5.420952381 | I48: =SUM(I7:I11)+I15 -> 8.5 | J48: =SUM(J7:J11)+J15 -> 0.7878081535 | K48: =SUM(K7:K11)+K15 -> 0.9453697842
B49: Total With Labor | K49: =K48*'BUDGET CALCULATOR'!C5 -> 0
B50: Total with Fuel | H50: =H48*'BUDGET CALCULATOR'!C7 -> 0
B51: Total with Irrigation | G51: =G48+'BUDGET CALCULATOR'!C8 -> 121.98
A53: Total Establishment Cost | C53: =G51+H50+I48+K49 -> 130.48
A55: Annual Interest (Ammortized over 10 Years) | C55: =((C53*('BUDGET CALCULATOR'!C6)))/((1-(1+('BUDGET CALCULATOR'!C6))^-10)) -> 
A57: TOTAL ESTABLISHMENT COST: | C57: =SUM(C53:C55) -> 
A60: Annual Totals | G60: =SUM(G21:G31) -> 0 | H60: =SUM(H15:H30) -> 10.07301587 | I60: =SUM(I15:I30) -> 20.61 | J60: =SUM(J15:J30) -> 1.491857988 | K60: =SUM(K15:K30) -> 1.790229586
B61: Total With Labor | K61: =K60*'BUDGET CALCULATOR'!C5 -> 0
B62: Total with Fuel | H62: =H60*'BUDGET CALCULATOR'!C7 -> 0
B63: Total with Irrigation | G63: =G60+'BUDGET CALCULATOR'!C8 -> 0
A65: Total Annual Cost | C65: =G63+H62+I60+K61 -> 20.61
A67: Total Interest (6 month loan) | C67: =((C65*('BUDGET CALCULATOR'!C6/12)))/((1-((1+('BUDGET CALCULATOR'!C6/12))^-6)))*0.5 -> 
A69: TOTAL ANNUAL COST | C69: =SUM(C65:C67) -> 
A71: TOTAL PER ACRE COST (Efficient Producer) | C71: =C69+C55 -> 

Sheet Source List (hidden)
A1: Source List
A3: University of Minnesota Extension
A4: http://4h.umn.edu/distribution/businessmanagement/DF6696.pdf
A6: Mississippi State Budget Generator Version 6
A7: CSU Created Mchinery Data Sets
A9: Univeristy of Nebraska Extension
A10: http://johnson.unl.edu/c/document_library/get_file?uuid=62533adb-f389-4b02-ab84-f8a8b7916323&groupId=134973&.pdf

Sheet BUDGET CALCULATOR
A1: Western Colorado Perennial Grass and Biomass Budget Generator
B3: STEP 1 Choose Financial Settings. | AB3: 14
B4: Select financial settings from drop-down menu | AB4: 0.025
B5: Select: Labor rate (per hour) | AB5: 4
B6: Select: Operating interest (%/year) | AB6: 10
B7: Select: Diesel fuel price (per gallon) | S7: Data lists for Drop Down Menus | AB7: 0
B8: Select: Irrigation cost (per acre) | O8: Macro key for run 1,2,3 | S8: Labor Rate | T8: Opp Interest rate | U8: Fuel Price | V8: Irrigation cost | W8: Input use | X8: Yield / Cutting | AB8: 0
AB9: 0
B10: STEP 2 Choose Crop Mix Scenario. | N10: Labor Rate (per hour) | O10: =C5 -> 0 | P10: =C5 -> 0 | Q10: =C5 -> 0 | R10: =C5 -> 0 | Z10: 7 | AB10: 0
B11: Select agronomic values from the drop-down menu of the desired crop mix. Next, type in the commodity sales price. Type in default fertilizer values or actual amount of fertilizer used. Cost,revenue, | N11: Operating Interest Rate | O11: =C6 -> 0 | P11: =C6 -> 0 | Q11: =C6 -> 0 | R11: =C6 -> 0 | S11: 7 | T11: 0 | U11: 2 | V11: 10 | W11: Low | Z11: 0.02 | AB11: 0
B12: and break-even calculations appear, directly below. Values may be changed and saved as a "Run". Change the values, save, and compare multiple Runs for each crop mix. | N12: Diesel Fuel Price (per gallon) | O12: =C7 -> 0 | P12: =C7 -> 0 | Q12: =C7 -> 0 | R12: =C7 -> 0 | S12: 8 | T12: 0.005 | U12: 2.1 | V12: 15 | W12: High | X12: 0
B13: Native Mix Scenario: | E13: Introduced Mix Scenario: | H13: Tall Fescue Scenario: | K13: Switchgrass Scenario: | N13: Irrigation Cost (per acre) | O13: =C8 -> 0 | P13: =C8 -> 0 | Q13: =C8 -> 0 | R13: =C8 -> 0 | S13: 9 | T13: 0.01 | U13: 2.2 | V13: 20 | W13: Low | X13: 0.5 | Z13: 4 | AB13: Tall Fescue Scenario:
N14: Fertilizer Input: | O14: =C15 -> 0 | P14: =F15 -> 0 | Q14: =I15 -> 0 | R14: =L15 -> 0 | S14: 10 | T14: 0.015 | U14: 2.3 | V14: 25 | X14: 1 | Z14: 10 | AB14: 0
B15: Select: Fertilizer intensity | E15: Select: Fertilizer intensity | H15: Select: Fertilizer intensity | K15: Select: Fertilizer intensity | N15: Number of Cuttings: | O15: =C16 -> 0 | P15: =F16 -> 0 | Q15: =I16 -> 0 | R15: =L16 -> 0 | S15: 11 | T15: 0.02 | U15: 2.4 | V15: 30 | X15: 1.5 | Z15: High | AB15: Fertilizer Input:
B16: Select: Number of cuttings: | E16: Select: Number of cuttings: | H16: Select: Number of cuttings: | K16: Select: Number of cuttings: | N16: Expected Yield (t/ac/cutting): | O16: =C17 -> 0 | P16: =F17 -> 0 | Q16: =I17 -> 0 | R16: =L17 -> 0 | S16: 12 | T16: 0.025 | U16: 2.5 | V16: 35 | W16: One | X16: 2 | Z16: Three | AB16: Number of Cuttings:
B17: Select: Expected yield (t/ac/cutting) | E17: Select: Expected yield (t/ac/cutting) | H17: Select: Expected yield (t/ac/cutting) | K17: Select: Expected yield (t/ac/cutting) | N17: Sales Price ($/t) | O17: 0 | P17: 0 | Q17: 0 | R17: 0 | S17: 13 | T17: 0.03 | U17: 2.6 | V17: 40 | W17: Two | X17: 2.5 | Z17: 2
B18: Enter: Sales price ($/t) | E18: Enter: Sales price ($/t) | H18: Enter: Sales price ($/t) | K18: Enter: Sales price ($/t) | N18: Fertilizer/Cutting in lbs./acre (default) | S18: 14 | T18: 0.035 | U18: 2.7 | V18: 45 | W18: Three | X18: 3 | Z18: 2.5 | AB18: High Yield (t/ac/cutting):
B19: Default: fertilizer/cutting in lbs/ac | C19: =IF(C15="","",IF(C15="Low", 30, 60)) ->  | E19: Default: fertilizer/cutting in lbs/acre | F19: =IF(F15="","",IF(F15="Low", 30, 60)) ->  | H19: Default: fertilizer/cutting in lbs/acre | I19: =IF(I15="","",IF(I15="Low", 30, 60)) ->  | K19: Default: fertilizer/cutting in lbs/acre | L19: =IF(L15="","",IF(L15="Low", 30, 60)) ->  | N19: Fertilizer/Cutting in lbs./acre (actual) | O19: 0 | P19: 0 | Q19: 0 | R19: 0 | S19: 15 | T19: 0.04 | U19: 2.8 | V19: 50 | X19: 3.5 | Z19: 150 | AB19: Sales Price ($/t)
B20: Enter: Actual fertilizer input | E20: Enter: Actual fertilizer input | H20: Enter: Actual fertilizer input | K20: Enter: Actual fertilizer input | N20: Cost Per Acre: | O20: =C21 -> NA | P20: =F21 -> NA | Q20: =I21 -> NA | R20: =L21 -> NA | S20: 16 | T20: 0.045 | U20: 2.9 | V20: 55 | X20: 4 | Z20: 60
B21: Result: Cost per acre: | C21: =IF(C15="","NA", (IF(AND(C15="Low",C16="Two"),'Native Mix L Input-2 cut'!C71,IF(AND(C15="Low",C16="One"),'Native Mix L Input-1 cut'!C70,IF(AND(C15="High",C16="Two"),'Native Mix H Input-2 cut'!C71,IF(AND(C15="High",C16="One"),'Native Mix H Input-1 cut'!C71,IF(AND(C15="High",C16="Three"),'Native Mix H Input-3 cut'!C71,"NA"))))))) -> NA | E21: Result: Cost per acre: | F21: =IF(F15="","NA",(IF(AND(F15="Low",F16="Two"),'Introduced Mix L Input-2 cut'!C71,IF(AND(F15="Low",F16="One"),'Introduced Mix L Input-1 cut'!C71,IF(AND(F15="High",F16="Two"),'Intoduced Mix H Input-2 cut'!C71,IF(AND(F15="High",F16="One"),'Introduced Mix H Input-1 cut'!C71,IF(AND(F15="High",F16="Three"),'Intoduced Mix H Input-3 cut'!C71,"NA"))))))) -> NA | H21: Result: Cost per acre: | I21: =IF(I15="","NA",(IF(AND(I15="Low",I16="Two"),'Tall Fescue L Input-2 cut'!C71,IF(AND(I15="Low",I16="One"),'Tall Fescue L Input-1 cut'!C71,IF(AND(I15="High",I16="Two"),'Tall Fescue H Input-2 cut'!C71,IF(AND(I15="High",I16="One"),'Tall Fescue H Input-1 cut'!C71,IF(AND(I15="High",I16="Three"),'Tall Fescue H Input-3 cut'!C71,"NA"))))))) -> NA | K21: Result: Cost per acre: | L21: =IF(C15="","NA", (IF(AND($L$15="Low",$L$16="Two"),'Switchgrass L Input-2 cut'!C71,IF(AND($L$15="Low",$L$16="One"),'Switchgrass L Input-1 cut'!C71,IF(AND($L$15="High",$L$16="Two"),'Switchgrass H Input-2 cut'!C78,IF(AND($L$15="High",$L$16="One"),'Switchgrass H Input-1 cut'!C77,IF(AND($L$15="High",$L$16="Three"),'Switchgrass H Input-3 cut'!C84,"NA"))))))) -> NA | N21: Net Revenue Per Acre: | O21: NA | P21: NA | Q21: NA | R21: NA | S21: 17 | T21: 0.05 | U21: 3 | V21: 60 | X21: 4.5 | Z21: 60
B22: Result: Net revenue per acre: | C22: =IF(C21="NA", "NA", (IF(C16="one",C18*C17-C21,(IF(C16="two",C18*2*C17-C21,C18*3*C17-C21))))) -> NA | E22: Result: Net revenue per acre: | F22: =IF(F21="NA", "NA", (IF(F16="one",F18*F17-F21,(IF(F16="two",F18*2*F17-F21,F18*3*F17-F21))))) -> NA | H22: Result: Net revenue per acre: | I22: =IF(I21="NA", "NA", (IF(I16="one",I18*I17-I21,(IF(I16="two",I18*2*I17-I21,I18*3*I17-I21))))) -> NA | K22: Result: Net revenue per acre: | L22: =IF(L21="NA", "NA", (IF(L16="one",L18*L17-L21,(IF(L16="two",L18*2*L17-L21,L18*3*L17-L21))))) -> NA | N22: Break-even price ($/t) | O22: NA | P22: NA | Q22: NA | R22: NA | S22: 18 | T22: 0.055 | U22: 3.1 | V22: 65 | X22: 5 | Z22: 197.5680911
B23: Result: Breakeven price ($/t) | C23: =IF(C21="NA","NA",(IF(C16="one",C21/C17,IF(C16="two",C21/(2*C17),C21/(3*C17))))) -> NA | E23: Result: Breakeven price ($/t) | F23: =IF(F21="NA", "NA", (IF(F16="one",F21/F17,IF(F16="two",F21/(2*F17),F21/(3*F17))))) -> NA | H23: Result: Breakeven price ($/t) | I23: =IF(I21="NA", "NA", (IF(I16="one",I21/I17,IF(I16="two",I21/(2*I17),I21/(3*I17))))) -> NA | K23: Result: Breakeven price ($/t) | L23: =IF(L21="NA", "NA", (IF(L16="one",L21/L17,IF(L16="two",L21/(2*L17),L21/(3*L17))))) -> NA | O23: =C24 -> 0 | P23: =F24 -> 0 | R23: =L24 -> 0 | S23: 19 | T23: 0.06 | U23: 3.2 | V23: 70 | X23: 5.5 | Z23: 702.4319089
O24: 0 | P24: 0 | R24: 0 | S24: 20 | T24: 0.065 | U24: 3.3 | V24: 75 | X24: 6
A25: STEP 3 | O25: 0 | P25: 0 | R25: 0 | S25: 21 | T25: 0.07 | U25: 3.4 | V25: 80 | X25: 6.5 | Z25: 1
S26: 22 | T26: 0.075 | U26: 3.5 | V26: 85 | X26: 7 | Z26: 2
A27: Save Results. | S27: 23 | T27: 0.08 | U27: 3.6 | V27: 90 | X27: 7.5
A28: Compare up to | S28: 24 | T28: 0.085 | U28: 3.7 | V28: 95 | X28: 8
A29: 3 runs for each | S29: 25 | T29: 0.09 | U29: 3.8 | V29: 100
A30: crop. | S30: 26 | T30: 0.095 | U30: 3.9 | V30: 105
S31: 27 | T31: 0.1 | U31: 4 | V31: 110
S32: 28 | T32: 0.105 | U32: 4.1 | V32: 115
B33: Summary of Native Mix Scenario, Run 1: | E33: Summary of Introduced Mix Scenario, Run 1: | H33: Summary of Tall Fescue Scenario, Run 1: | K33: Summary of Switchgrass Scenario, Run 1: | S33: 29 | T33: 0.11 | U33: 4.2 | V33: 120
B34: Labor Rate (per hour) | E34: Labor Rate (per hour) | H34: Labor Rate (per hour) | K34: Labor Rate (per hour) | S34: 30 | T34: 0.115 | U34: 4.3 | V34: 125
B35: Operating Interest Rate | E35: Operating Interest Rate | H35: Operating Interest Rate | K35: Operating Interest Rate | S35: 31 | T35: 0.12 | U35: 4.4 | V35: 130
B36: Diesel Fuel Price (per gallon) | E36: Diesel Fuel Price (per gallon) | H36: Diesel Fuel Price (per gallon) | K36: Diesel Fuel Price (per gallon) | S36: 32 | T36: 0.125 | U36: 4.5 | V36: 135
B37: Irrigation Cost (per acre) | E37: Irrigation Cost (per acre) | H37: Irrigation Cost (per acre) | K37: Irrigation Cost (per acre) | S37: 33 | T37: 0.13 | U37: 4.6 | V37: 140
B38: Fertilizer/Cutting (lbs/ac) | E38: Fertilizer/Cutting (lbs/ac) | H38: Fertilizer/Cutting (lbs/ac) | K38: Fertilizer/Cutting (lbs/ac) | T38: 0.135 | U38: 4.7 | V38: 145
B39: Number of Cuttings: | E39: Number of Cuttings: | H39: Number of Cuttings: | K39: Number of Cuttings: | T39: 0.14 | U39: 4.8 | V39: 150
B40: Expected Yield (t/ac/cutting): | E40: Expected Yield (t/ac/cutting): | H40: Expected Yield (t/ac/cutting): | K40: Expected Yield (t/ac/cutting): | T40: 0.145 | U40: 4.9 | LQ40: Single
B41: Sales Price ($/t) | E41: Sales Price ($/t) | H41: Sales Price ($/t) | K41: Sales Price ($/t) | T41: 0.15 | U41: 5
B42: Fertilizer/Cutting lbs/ac (default) | E42: Fertilizer/Cutting lbs/ac (default) | H42: Fertilizer/Cutting lbs/ac (default) | K42: Fertilizer/Cutting lbs/ac (default) | U42: 5.1
B43: Fertilizer/Cutting in lbs/ac (actual) | E43: Fertilizer/Cutting in lbs/ac (actual) | H43: Fertilizer/Cutting in lbs/ac (actual) | K43: Fertilizer/Cutting in lbs/ac (actual) | U43: 5.2
B44: Cost Per Acre: | E44: Cost Per Acre: | H44: Cost Per Acre: | K44: Cost Per Acre:
B45: Net Revenue Per Acre: | E45: Net Revenue Per Acre: | H45: Net Revenue Per Acre: | K45: Net Revenue Per Acre:
B46: Break-even price ($/t) | E46: Break-even price ($/t) | H46: Break-even price ($/t) | K46: Break-even price ($/t)
B48: Summary of Native Mix Scenario, Run 2: | E48: Summary of Introduced Mix Scenario, Run 2: | H48: Summary of Tall Fescue Scenario, Run 2: | K48: Summary of Switchgrass Scenario, Run 2: | L48: 10
B49: Labor Rate (per hour) | E49: Labor Rate (per hour) | H49: Labor Rate (per hour) | K49: Labor Rate (per hour)
B50: Operating Interest Rate | E50: Operating Interest Rate | H50: Operating Interest Rate | K50: Operating Interest Rate
B51: Diesel Fuel Price (per gallon) | E51: Diesel Fuel Price (per gallon) | H51: Diesel Fuel Price (per gallon) | K51: Diesel Fuel Price (per gallon)
B52: Irrigation Cost (per acre) | E52: Irrigation Cost (per acre) | H52: Irrigation Cost (per acre) | K52: Irrigation Cost (per acre)
B53: Fertilizer/cutting (lbs/ac) | E53: Fertilizer/cutting (lbs/ac) | H53: Fertilizer/cutting (lbs/ac) | K53: Fertilizer/cutting (lbs/ac)
B54: Number of Cuttings: | E54: Number of Cuttings: | H54: Number of Cuttings: | K54: Number of Cuttings:
B55: Expected Yield (t/ac/cutting): | E55: Expected Yield (t/ac/cutting): | H55: Expected Yield (t/ac/cutting): | K55: Expectd Yield (t/ac/cutting):
B56: Sales Price ($/t) | E56: Sales Price ($/t) | H56: Sales Price ($/t) | K56: Sales Price ($/t)
B57: Fertilizer/Cutting lbs/ac (default) | E57: Fertilizer/Cutting lbs/ac (default) | H57: Fertilizer/Cutting lbs/ac (default) | K57: Fertilizer/Cutting lbs/ac (default)
B58: Fertilizer/Cutting in lbs/ac (actual) | E58: Fertilizer/Cutting in lbs/ac (actual) | H58: Fertilizer/Cutting in lbs/ac (actual) | K58: Fertilizer/Cutting in lbs/ac (actual)
B59: Cost Per Acre: | E59: Cost Per Acre: | H59: Cost Per Acre: | K59: Cost Per Acre:
B60: Net Revenue Per Acre: | E60: Net Revenue Per Acre: | H60: Net Revenue Per Acre: | K60: Net Revenue Per Acre:
B61: Break-even price ($/t) | E61: Break-even price ($/t) | H61: Break-even price ($/t) | K61: Break-even price ($/t)
B63: Results From Native Mix Scenario, Run 3: | E63: Summary of Introduced Mix Scenario, Run 3: | H63: Summary of Tall Fescue Scenario, Run 3 | K63: Summary of Switchgrass Scenario, Run 3:
B64: Labor Rate (per hour) | E64: Labor Rate (per hour) | G64: 9 | H64: Labor Rate (per hour) | K64: Labor Rate (per hour)
B65: Operating Interest Rate | E65: Operating Interest Rate | G65: 0.02 | H65: Operating Interest Rate | K65: Operating Interest Rate
B66: Diesel Fuel Price (per gallon) | E66: Diesel Fuel Price (per gallon) | G66: 2.2 | H66: Diesel Fuel Price (per gallon) | K66: Diesel Fuel Price (per gallon)
B67: Irrigation Cost (per acre) | E67: Irrigation Cost (per acre) | G67: 30 | H67: Irrigation Cost (per acre) | K67: Irrigation Cost (per acre)
B68: Fertilizer/cutting (lbs/ac) | E68: Fertilizer/cutting (lbs/ac) | G68: Low | H68: Fertilizer/cutting (lbs/ac) | K68: Fertilizer/cutting (lbs/ac)
B69: Number of Cuttings: | E69: Number of Cuttings: | G69: Two | H69: Number of Cuttings: | K69: Number of Cuttings:
B70: Expected Yield (t/ac/cutting) | E70: Expected Yield (t/ac/cutting) | G70: 1.5 | H70: Expected Yield (t/ac/cutting) | K70: Expected Yield (t/ac/cutting):
B71: Sales Price ($/t) | E71: Sales Price ($/t) | G71: 200 | H71: Sales Price ($/t) | K71: Sales Price ($/t)
B72: Fertilizer/Cutting lbs/ac (default) | E72: Fertilizer/Cutting lbs/ac (default) | G72: 30 | H72: Fertilizer/Cutting lbs/ac (default) | K72: Fertilizer/Cutting lbs/ac (default)
B73: Fertilizer/Cutting in lbs/ac (actual) | E73: Fertilizer/Cutting in lbs/ac (actual) | G73: 30 | H73: Fertilizer/Cutting in lbs/ac (actual) | K73: Fertilizer/Cutting in lbs/ac (actual)
B74: Cost Per Acre: | E74: Cost Per Acre: | G74: 131.4877028 | H74: Cost Per Acre: | K74: Cost Per Acre:
B75: Net Revenue Per Acre: | E75: Net Revenue Per Acre: | G75: 468.5122972 | H75: Net Revenue Per Acre: | K75: Net Revenue Per Acre:
B76: Break-even price ($/t) | E76: Break-even price ($/t) | G76: 43.82923425 | H76: Break-even price ($/t) | K76: Break-even price ($/t)

Sheet Instructions
B3: Directions for Using the Western Colorado Perennial Grass and Biomass Budget Generator
B5: This budget calculator provides farmers with a tool for estimating the operating costs, revenues, and profitability of growing perennial grasses in western Colorado. Farmers can compare different agricultural scenarios by selecting customized financial and agronomic values. The farmer's customized settings are combined with agricultural operating and financial formulas housed within the spreadsheet. This information is used to calculate a one-year budget for growing biomass and perennial grass, with the first year of establishment costs amortized into the budget.
B6: A step-by-step guide is provided below, followed by a description of basic assumptions.
B8: Budget estimates can be generated in three steps:
B10: Step 1: Select Financial Settings. Click on the shaded cells, then click on the ⏏ symbol to review a range of values. Click to select the appropriate value, and a checkmark will appear next to the selection. This value will be transferred into the cell. Labor rates can be applied to all labor (including an owner-operator, if desired). The interest rate reflects the interest rate (per year) paid on all operating costs. Irrigation costs consist of all operating costs incurred per year (labor, fuel, water charges, etc).
B12: Step 2: Select Crop Mix Scenario and Enter Operational Parameters. Enter the amount for each of the shaded cells in the second section, including: Fertilizer intensity, number of cuttings, expected yield, expected price of yield, and actual fertilizer used. Each step is explained in greater detail below. Cost per acre, net revenue and breakeven price are all reported at the end of this section.
B14: Fertilizer Intensity. Click on the ⏏ symbol to select “High” or “Low” fertilizer inputs in order to generate a default value. A checkmark will appear next to the selection. “High” fertilizer reflects a default value of 60 lbs./cutting/acre of Nitrogen fertilizer. “Low” fertilizer reflects a default value of 30 lbs./cutting/acre of Nitrogen fertilizer per application. Please note that "fertilizer intensity" will be used to generate default values that can be entered as the actual amount of fertilizer used in each cutting.
B16: Note: In order to generate three cuttings, “high” amounts of fertilizer input are necessary. “Low” amounts of fertilizer are not an option for three cuttings, and “NA” will appear in the results when this selection is made.
B18: Number of cuttings: Click on the ⏏ symbol to select from One, Two, or Three cuttings.
B20: “Expected yield”: Click on the ⏏ symbol to select the anticipated yield, expressed in tons/acre/cutting. Preliminary yield results for growing perennial grasses in Western Colorado have been reported at the Western Agricultural Experiment Station in Fruita (Pearson et al., 2012.) For more specific information about input and yield data, please click on the Pearson et al. 2012 button.
B22: Sales price: Enter the expected sales price in $/ton, to calculate the break-even prices and expected profitability. Like many experimental crops, it may take some effort to find perennial grass price data. The County Extension Office, industry, or regional bio-refineries are good resources for this information.
B24: Default or actual fertilizer/cutting in lbs./acre: Enter either the default values or the actual amount of fertilizer used in each cutting. Default fertilizer values are calculated when “high” or “low” fertilizer settings are selected. Fertilizer values are based upon control trials at the Western Colorado Ag Experiment Station in Fruita (Pearson et al., 2012), but farmers can enter their own fertilizer values.
B26: Step 3: Save and Compare Different Scenarios. Save your current run by clicking on “SaveRun1”. Next, modify the information in steps 1 and 2 as desired, and save as Run 2. Compare how changes in financial or agronomic inputs affect cost and break-even prices. Save up to three different runs, by clicking “Save Run”. Please note that Macros need to be enabled in order to save the runs.
B28: Asssumptions
B29: About the Budget Generator: Perennial grass production is still considered an experimental venture. However, recent research shows that it is agronomically feasible to establish and grow several grass varieties in western Colorado (Pearson et al., 2012). A logical follow-up question is whether it is economically feasible to do so. For more detailed information about yield, output, and inputs used in this calculator, please click on the link.
B31: Calculating the economic feasibility of farm-scale perennial grass production is a step towards resolving the “chicken and egg” biofuel production dilemma. While bio-refineries need an assurance that feedstock will be available for production, farmers won’t engage in long-term perennial grass production, unless they have a handle on estimated costs. Therefore, users are asked to view the budget generator in proper context. It is a tool built upon preliminary agronomic and economic data for western Colorado that may be useful for farmers to calculate farm-level costs for perennial grass production. It our hope that this tool will jump start conversations and projects that will eventually lead to a more sophisticated understanding of the agronomic and economic potential for perennial grass production in western Colorado.
B33: In summary, this tool actually generates partial budgets, because more calculations are being made internally than can be viewed on the screen. There are some production costs (e.g. pesticide application) that are being computed internally and that are not expected to change by the different type of grass. Therefore, in the interest of making this tool as straight-forward as possible, these costs are not presented on the screen. Since growing perennial grass for biomass is considered an experimental venture, please provide feedback to the Western Colorado Research Center, Agricultural Experiment Station-Fruita about how to improve upon this tool: 970-434-3264.
B42: Mention of a trademark or proprietary product does not constitute endorsement by the Colorado Agricultural Experiment Station.
B44: Disclaimer: Colorado State University is an equal opportunity/affirmative action institution and complies with all Federal and Colorado State laws, regulations, and executive orders regarding affirmative action requirements in all programs. The Office of Equal Opportunity is located in 101 Student Services. In order to assist Colorado State University in meeting its affirmative action responsibilities, ethnic minorities, women, and other protected class members are encouraged to apply and to so identify themselves.
B45: pwgrass
